Body Name,Body,Service Level,Expense Type,Expense Code,Narrative,Date,Transaction Number,Amount,Capital and Revenue,Supplier Name,Supplier ID
South Ribble Council,http://statistics.data.gov.uk/doc/local-authority/30UN,Information Services,Peripherals,4241,"2 x iPad 10.5`` wifi + cellular 64GB @ 605.00 each, 2 x Folio case @ 132.00 each and 2 x 2yr AppleCare @ 129.00 each",09/01/2019,0000444195,"1,474.00",Revenue,ACS SYSTEMS UK LTD,00070166
South Ribble Council,http://statistics.data.gov.uk/doc/local-authority/30UN,Information Services,Peripherals,4241,2yr applecare,09/01/2019,0000444195,258.00,Revenue,ACS SYSTEMS UK LTD,00070166
South Ribble Council,http://statistics.data.gov.uk/doc/local-authority/30UN,Property Services,Rep & Maint Fixed Plant,2035,"2018 / 2019 annual contract for CCTV maintenance at Moss Side Depot 81 Bison Place, PR25 9QR",02/01/2019,0000444115,"2,320.47",Revenue,ADT FIRE & SECURITY PLC,131052
South Ribble Council,http://statistics.data.gov.uk/doc/local-authority/30UN,Area 2 - Waste Transport/Eastern & Central Teams,External Contractors Charges,4570,spec repair - ,16/01/2019,0000444368,272.83,Revenue,AEBI SCHMIDT UK LTD,00085672
South Ribble Council,http://statistics.data.gov.uk/doc/local-authority/30UN,Environmental Health,Financial,4811,post office,09/01/2019,0000444172,942.07,Revenue,ALLPAY LTD,00122276
South Ribble Council,http://statistics.data.gov.uk/doc/local-authority/30UN,Environmental Health,Financial,4811,paypoint,09/01/2019,0000444172,140.49,Revenue,ALLPAY LTD,00122276
South Ribble Council,http://statistics.data.gov.uk/doc/local-authority/30UN,Environmental Health,Financial,4811,webcon,09/01/2019,0000444172,47.72,Revenue,ALLPAY LTD,00122276
South Ribble Council,http://statistics.data.gov.uk/doc/local-authority/30UN,Neighbourhood Admin & Support,Clothing- Uniforms & Laundry,4410,DISPOSABLE GLOVES NITRILE (BOX- 100) size medium - DG150-M,02/01/2019,0000444121,70.40,Revenue,AMTOLL LTD,130945
South Ribble Council,http://statistics.data.gov.uk/doc/local-authority/30UN,Neighbourhood Admin & Support,Clothing- Uniforms & Laundry,4410,DISPOSABLE GLOVES NITRILE (BOX- 100) size large - DG150-L,02/01/2019,0000444121,70.40,Revenue,AMTOLL LTD,130945
South Ribble Council,http://statistics.data.gov.uk/doc/local-authority/30UN,Neighbourhood Admin & Support,Materials General,4040,TORK SMARTONE JUMBO ROLL - AA300,02/01/2019,0000444121,155.70,Revenue,AMTOLL LTD,130945
South Ribble Council,http://statistics.data.gov.uk/doc/local-authority/30UN,Property Services,Cleaning and Domestic Supplies,2711,To supply cleaning stock for offices and kitchen @ SRBC,09/01/2019,0000444126,299.83,Revenue,AMTOLL LTD,130945
South Ribble Council,http://statistics.data.gov.uk/doc/local-authority/30UN,Housing,Cap Grant- Improve Grants,C570,"Grant payment towards the cost of supply and installation of heating system at ADDRESS REDACTED TOTAL COST ",09/01/2019,0000444162,"1,000.00",Revenue,APG DOMESTIC SERVICES,00061463
South Ribble Council,http://statistics.data.gov.uk/doc/local-authority/30UN,Housing,Cap Grant- Improve Grants,C570,DFG WORKS TO BATHROOM ATADDRESS REDACTED,23/01/2019,0000444486,"4,625.75",Revenue,APG DOMESTIC SERVICES,00061463
South Ribble Council,http://statistics.data.gov.uk/doc/local-authority/30UN,Democratic Services,Other Misc,4424,"Course: AEA Verification & Count Course, Location: Preston, Date: 25th March 2019, Delegate: NAME REDACTED",09/01/2019,0000444257,275.00,Revenue,ASSOC OF ELECTORAL ADMINISTRATORS LTD,00014449
South Ribble Council,http://statistics.data.gov.uk/doc/local-authority/30UN,Democratic Services,Other Misc,4424,"Course: AEA Verification & Count CourseLocation: Preston, Date: 25th March 2019, Delegate:NAME REDACTED",09/01/2019,0000444257,138.00,Revenue,ASSOC OF ELECTORAL ADMINISTRATORS LTD,00014449
South Ribble Council,http://statistics.data.gov.uk/doc/local-authority/30UN,Development Enterprise & Comm Mgnt,Other Misc,485I,Annual Membership Fee for 2019 @625.00,02/01/2019,0000444112,625.00,Revenue,Association of Town Centre Management,131926
South Ribble Council,http://statistics.data.gov.uk/doc/local-authority/30UN,Development Enterprise & Comm Mgnt,Agency Fees,1121,Professional Services in relation to Leyland Campus,23/01/2019,0000444255,"7,812.00",Revenue,Atkins Limited Shared Service Facility,132625
South Ribble Council,http://statistics.data.gov.uk/doc/local-authority/30UN,Regeneration,Capital Expenditure,C230,"PAGABO LOT1 Professional services contract in relation to Leyland Campus program (18/19 fee)Total contract 1,800,000",30/01/2019,0000444261,"50,000.00",Revenue,Atkins Limited Shared Service Facility,132625
South Ribble Council,http://statistics.data.gov.uk/doc/local-authority/30UN,Regeneration,Capital Expenditure,C230,"PAGABO LOT1 Professional services contract in relation to Leyland Campus program (18/19 fee)Total contract 1,800,000",30/01/2019,0000444262,"30,000.00",Revenue,Atkins Limited Shared Service Facility,132625
South Ribble Council,http://statistics.data.gov.uk/doc/local-authority/30UN,Development Enterprise & Comm Mgnt,Agency Fees,1121,Professional Services in relation to Leyland Campus,30/01/2019,0000444387,"22,568.00",Revenue,Atkins Limited Shared Service Facility,132625
South Ribble Council,http://statistics.data.gov.uk/doc/local-authority/30UN,Regeneration,Other Misc,4851,"Coach Hire for Battles Over event 11/11/20184 x large coaches",16/01/2019,0000444263,600.00,Revenue,AVACAB LTD,00109859
South Ribble Council,http://statistics.data.gov.uk/doc/local-authority/30UN,Property Services,Rep & Maint Premises,2020,Annual Contract 2018/2019 for servicing the doors at  Moss Side Depot as per email 27.3.2018,30/01/2019,0000444619,514.50,Revenue,AVALON DOORS & AWNINGS LTD,131051
South Ribble Council,http://statistics.data.gov.uk/doc/local-authority/30UN,Property Services,Rep & Maint Premises,2020,Annual Contract 2018/2019 for servicing doors at Longton Brickcroft as per email 27.3.2018,30/01/2019,0000444619,157.50,Revenue,AVALON DOORS & AWNINGS LTD,131051
South Ribble Council,http://statistics.data.gov.uk/doc/local-authority/30UN,Property Services,Rep & Maint Premises,2020,Annual Contract for service of doors at Leyland Market Various Stalls 2018/2019 as per email 27.3.2018,30/01/2019,0000444619,451.50,Revenue,AVALON DOORS & AWNINGS LTD,131051
South Ribble Council,http://statistics.data.gov.uk/doc/local-authority/30UN,Area 2 - Waste Transport/Eastern & Central Teams,Advertising,4842,"50,000 stickers garden waste reminder.",23/01/2019,0000444397,"1,658.00",Revenue,B & D PRINT SERVICES LTD,00015134
South Ribble Council,http://statistics.data.gov.uk/doc/local-authority/30UN,Regeneration,Capital Expenditure,C230,Manufacture and supply of bespoke bollards,16/01/2019,0000444031,"4,305.56",Revenue,Barricade Ltd,132631
South Ribble Council,http://statistics.data.gov.uk/doc/local-authority/30UN,Housing,Cap Grant- Improve Grants,C570,"Disrepair grant for heating at ADDRESS REDACTED. 50% of cost as per quote of 990.00 total grant payable 445.00",11/01/2019,0000444295,445.00,Revenue,Bartons of Duke Street Ltd,132663
South Ribble Council,http://statistics.data.gov.uk/doc/local-authority/30UN,Housing,Cap Grant- Improve Grants,C570,Grant payment towards the cost of supply and installation of heating system at ADDRESS REDACTED Cost of Grant  4750.50,30/01/2019,0000444578,"3,958.75",Revenue,Bartons of Duke Street Ltd,132663
South Ribble Council,http://statistics.data.gov.uk/doc/local-authority/30UN,Property Services,Rep & Maint Premises,2020,Annual Contract 2018/2019 External Lighting/Emergency Lighting Maintenance at Higher Walton Community Centre,02/01/2019,0000444049,291.00,Revenue,BELEC ELECTRICAL LTD,130290
South Ribble Council,http://statistics.data.gov.uk/doc/local-authority/30UN,Property Services,Rep & Maint Premises,2020,Annual Contract 2018/2019 Electrical Testing and Electrical  Installation Test at Moss Side Depot,02/01/2019,0000444051,432.00,Revenue,BELEC ELECTRICAL LTD,130290
South Ribble Council,http://statistics.data.gov.uk/doc/local-authority/30UN,Property Services,Rep & Maint Premises,2020,Please attend North Lodge and repair the cabling as per NAME REDACTED and quote to SRBC,25/01/2019,0000444520,684.44,Revenue,BELEC ELECTRICAL LTD,130290
South Ribble Council,http://statistics.data.gov.uk/doc/local-authority/30UN,Property Services,Rep & Maint Premises,2020,Please move 2 double plug sockets and IT cables in HR 1st floor office (out of hours) as per quotation SRBC19 dated 15/1/2019,25/01/2019,0000444521,300.76,Revenue,BELEC ELECTRICAL LTD,130290
South Ribble Council,http://statistics.data.gov.uk/doc/local-authority/30UN,Chief Executive`s Management,Other Expenses,463C,"25th January 2019South Ribble Borough Council Leadership Away Day",30/01/2019,0000444571,"3,500.00",Revenue,Brathay Services Ltd,132732
South Ribble Council,http://statistics.data.gov.uk/doc/local-authority/30UN,Housing,Licence Fees,4884,"BRE DWELLING LEVEL HOUSING STOCK MODELLING, INTEGRATED DATABASE AND LICENCE",09/01/2019,0000443991,800.00,Revenue,BUILDING RESEARCH ESTABLISHMENT LTD,131951
South Ribble Council,http://statistics.data.gov.uk/doc/local-authority/30UN,Housing,Licence Fees,4884,"BRE DWELLING LEVEL HOUSING STOCK MODELLING, INTEGRATED DATABASE AND LICENCE",09/01/2019,0000443992,"2,698.00",Revenue,BUILDING RESEARCH ESTABLISHMENT LTD,131951
South Ribble Council,http://statistics.data.gov.uk/doc/local-authority/30UN,Area 3 - Parks/Leyland East West,Materials General,4040,"01011299 Sawn Carcassing to be X-CUT to make 3 No 2.8mtr 100 x 300 R/S - Vac Treated - C24 Grade.8.4m @ 17.42",16/01/2019,0000444389,146.33,Revenue,C & W BERRY LTD,00015231
South Ribble Council,http://statistics.data.gov.uk/doc/local-authority/30UN,Area 3 - Parks/Leyland East West,Materials General,4040,01011299 Sawn Carcassing to be X-CUT to make 2 No 1.5 mtr 100 x 300 R/S - Vac Treated - C24 Grade.3m @ 16.36,16/01/2019,0000444389,49.08,Revenue,C & W BERRY LTD,00015231
South Ribble Council,http://statistics.data.gov.uk/doc/local-authority/30UN,Area 3 - Parks/Leyland East West,Materials General,4040,01011299 Sawn Carcassing to be X-CUT to make 2 No 1.3 mtr 100 x 300 R/S - Vac Treated - C24 Grade.2.6m @ 18.64,16/01/2019,0000444389,48.46,Revenue,C & W BERRY LTD,00015231
South Ribble Council,http://statistics.data.gov.uk/doc/local-authority/30UN,Area 3 - Parks/Leyland East West,Materials General,4040,"02010014 Lagan Brick 65mm Red Rustic 552/pk100 @ 0.528",16/01/2019,0000444389,52.80,Revenue,C & W BERRY LTD,00015231
South Ribble Council,http://statistics.data.gov.uk/doc/local-authority/30UN,Area 3 - Parks/Leyland East West,Materials General,4040,02011005 Knowles 215 x 65mm Air Brick Sq Hole - Red.2 @ 3.59,16/01/2019,0000444389,7.18,Revenue,C & W BERRY LTD,00015231
South Ribble Council,http://statistics.data.gov.uk/doc/local-authority/30UN,Area 3 - Parks/Leyland East West,Materials General,4040,"02030067 Rainford 140mm 7N Dense Concrete Blocks - Cellular.6 @ 1.319",16/01/2019,0000444389,7.91,Revenue,C & W BERRY LTD,00015231
South Ribble Council,http://statistics.data.gov.uk/doc/local-authority/30UN,Area 3 - Parks/Leyland East West,Materials General,4040,"02350001 Knowles KYM17R 300mm Toll top Chimney Pot - RedHEIGHT TO BE CONFIRMED",16/01/2019,0000444389,23.67,Revenue,C & W BERRY LTD,00015231
South Ribble Council,http://statistics.data.gov.uk/doc/local-authority/30UN,Area 3 - Parks/Leyland East West,Materials General,4040,"03212121 Bat AB604060 60mm Wide x 40mm Angle Bracket 16 @ 0.70",16/01/2019,0000444389,11.20,Revenue,C & W BERRY LTD,00015231
South Ribble Council,http://statistics.data.gov.uk/doc/local-authority/30UN,Area 3 - Parks/Leyland East West,Materials General,4040,"04019204 FHBR Weldmesh 1800mm Security Fencing - 2.5mm Galvanised6m @ 7.30",16/01/2019,0000444389,43.80,Revenue,C & W BERRY LTD,00015231
South Ribble Council,http://statistics.data.gov.uk/doc/local-authority/30UN,Area 3 - Parks/Leyland East West,Materials General,4040,"02291622 Redland Rosemary Classic Tile + Half - Red.30 @ 0.90",16/01/2019,0000444389,27.00,Revenue,C & W BERRY LTD,00015231
South Ribble Council,http://statistics.data.gov.uk/doc/local-authority/30UN,Neighbourhood Admin & Support,Materials General,4040,HANSON FAST SET POST MIX  20kg - 02110336,23/01/2019,0000444541,260.40,Revenue,C & W BERRY LTD,00015231
South Ribble Council,http://statistics.data.gov.uk/doc/local-authority/30UN,Neighbourhood Admin & Support,Materials General,4040,HANSON FAST SET POST MIX  20kg - 02110336,23/01/2019,0000444543,260.40,Revenue,C & W BERRY LTD,00015231
South Ribble Council,http://statistics.data.gov.uk/doc/local-authority/30UN,Property Services,External Contractors Charges,4575,To supply buffet @ 7 per head for 14 on 20th November 2018 @ 16.30 to SRBC,18/01/2019,0000443914,98.00,Revenue,Chicken BBQ,132568
South Ribble Council,http://statistics.data.gov.uk/doc/local-authority/30UN,Property Services,External Contractors Charges,4575,To supply buffet @ 7 per head for 15 on 8th November 2018 @ 16.30 to SRBC,18/01/2019,0000443914,105.00,Revenue,Chicken BBQ,132568
South Ribble Council,http://statistics.data.gov.uk/doc/local-authority/30UN,Property Services,External Contractors Charges,4575,To supply buffet @ 7 per head for 12 on 21st November 2018 @ 17.00 to SRBC,18/01/2019,0000443914,84.00,Revenue,Chicken BBQ,132568
South Ribble Council,http://statistics.data.gov.uk/doc/local-authority/30UN,Property Services,External Contractors Charges,4575,To supply buffet on 22nd November 2018 for 16 @ 7 per head @ 12.30 to SRBC,18/01/2019,0000443914,84.00,Revenue,Chicken BBQ,132568
South Ribble Council,http://statistics.data.gov.uk/doc/local-authority/30UN,Property Services,External Contractors Charges,4575,To supply buffet @ 7 per head for 8 on 22nd November 2018 @ 16.30 to SRBC,18/01/2019,0000443914,56.00,Revenue,Chicken BBQ,132568
South Ribble Council,http://statistics.data.gov.uk/doc/local-authority/30UN,Property Services,External Contractors Charges,4575,"
To supply buffet @ 7 per head for 20 on 28th November  2018@ 16.00 to SRBC",18/01/2019,0000443914,140.00,Revenue,Chicken BBQ,132568
South Ribble Council,http://statistics.data.gov.uk/doc/local-authority/30UN,Property Services,External Contractors Charges,4575,CATERING FOR THE PRE-RETIREMENT COURSE ON 20 NOVEMBER 2018 FOR 16 PEOPLE @ 8 PER HEAD,18/01/2019,0000443914,128.00,Revenue,Chicken BBQ,132568
South Ribble Council,http://statistics.data.gov.uk/doc/local-authority/30UN,Property Services,External Contractors Charges,4575,To supply buffet on 22nd November 2018 for 16 @ 7,18/01/2019,0000443914,112.00,Revenue,Chicken BBQ,132568
South Ribble Council,http://statistics.data.gov.uk/doc/local-authority/30UN,Homelessness,Contractors Charges 5,5311,"Outstanding Personal Charge of 67.50 & Rent in respect of ADDRESS REDACTED - 10 days @35.28 per day ",02/01/2019,0000444039,352.80,Revenue,CHORLEY BOROUGH COUNCIL,00017352
South Ribble Council,http://statistics.data.gov.uk/doc/local-authority/30UN,Homelessness,Contractors Charges 5,5311,personal charge,02/01/2019,0000444039,67.50,Revenue,CHORLEY BOROUGH COUNCIL,00017352
South Ribble Council,http://statistics.data.gov.uk/doc/local-authority/30UN,Area 2 - Waste Transport/Eastern & Central Teams,External Contractors Charges,4570,"Green Waste Subscriptions 18-19 330 @ 16.52",30/01/2019,0000444147,"5,452.00",Revenue,CHORLEY BOROUGH COUNCIL,00017352
South Ribble Council,http://statistics.data.gov.uk/doc/local-authority/30UN,Area 2 - Waste Transport/Eastern & Central Teams,External Contractors Charges,4570,Annual processing Charge 330 x 2.00,30/01/2019,0000444147,659.60,Revenue,CHORLEY BOROUGH COUNCIL,00017352
South Ribble Council,http://statistics.data.gov.uk/doc/local-authority/30UN,Democratic Services,Training Expense-Course Fees,1406,"Joint Licensing Training14th December 2018 50% shared costs",18/01/2019,0000444358,429.29,Revenue,CHORLEY BOROUGH COUNCIL,00017352
South Ribble Council,http://statistics.data.gov.uk/doc/local-authority/30UN,Area 2 - Waste Transport/Eastern & Central Teams,Materials General,4040,1 ad blu pump ,16/01/2019,0000444360,838.87,Revenue,CICELEY COMMERCIALS LTD,00059381
South Ribble Council,http://statistics.data.gov.uk/doc/local-authority/30UN,Homelessness,Contributions,4730,4 weeks RIA re ADDRESS REDACTED,30/01/2019,0000444516,296.36,Revenue,COMMUNITY GATEWAY HOUSING ASSOCIATION,00101682
South Ribble Council,http://statistics.data.gov.uk/doc/local-authority/30UN,Revenues Plus,Postage,4291,Postage September - December 2018,04/01/2019,0000444125,346.42,Revenue,CRITIQOM,131053
South Ribble Council,http://statistics.data.gov.uk/doc/local-authority/30UN,Revenues Plus,Postage,4291,Postage September - December 2018,09/01/2019,0000444193,320.50,Revenue,CRITIQOM,131053
South Ribble Council,http://statistics.data.gov.uk/doc/local-authority/30UN,Revenues Plus,Postage,4291,Postage for Jan - March 2019,18/01/2019,0000444458,930.13,Revenue,CRITIQOM,131053
South Ribble Council,http://statistics.data.gov.uk/doc/local-authority/30UN,Revenues Plus,Postage,4291,Postage for Jan - March 2019,25/01/2019,0000444601,442.51,Revenue,CRITIQOM,131053
South Ribble Council,http://statistics.data.gov.uk/doc/local-authority/30UN,Housing,Cap Grant- Improve Grants,C570,DFG WORKS TO BATHROOM ATADDRESS REDACTED AS PER QUOTE SUPPLED,09/01/2019,0000444198,"5,760.00",Revenue,Croston Plumbing & Heating Ltd,131545
South Ribble Council,http://statistics.data.gov.uk/doc/local-authority/30UN,Environmental Health,Professional Fees,4520,LICENSING STUDY REPORT,30/01/2019,0000444409,"2,342.50",Revenue,CTS Traffic & Transportation Ltd,132725
South Ribble Council,http://statistics.data.gov.uk/doc/local-authority/30UN,Development Enterprise & Comm Mgnt,Professional Fees,4510,Bikeability Training at Various Schools between 19th September 2018 and 18th October 2018,16/01/2019,0000443503,720.00,Revenue,David Evans,132686
South Ribble Council,http://statistics.data.gov.uk/doc/local-authority/30UN,Information Services,Agency Fees,1121,Support Engineer,02/01/2019,0000443987,"2,380.00",Revenue,Decipher:IT Ltd,132690
South Ribble Council,http://statistics.data.gov.uk/doc/local-authority/30UN,Information Services,Agency Fees,1121,Support Engineer days (1st Jan - 11th Jan),23/01/2019,0000444530,"2,240.00",Revenue,Decipher:IT Ltd,132690
South Ribble Council,http://statistics.data.gov.uk/doc/local-authority/30UN,Area 2 - Waste Transport/Eastern & Central Teams,Materials General,4040,1 RAM CYLINDER & 2 PIVOT PINS VO65 KRE JFC11834,16/01/2019,0000444291,394.96,Revenue,DENNIS EAGLE LTD,00019774
South Ribble Council,http://statistics.data.gov.uk/doc/local-authority/30UN,Area 2 - Waste Transport/Eastern & Central Teams,Materials General,4040,FUEL PUMP,23/01/2019,0000444401,415.74,Revenue,DENNIS EAGLE LTD,00019774
South Ribble Council,http://statistics.data.gov.uk/doc/local-authority/30UN,Property Services,Rep & Maint Fixed Plant,2033,Civic Centre supply wire and install 3 x VAD`s in the toilets 1 x Smoke detector  within the newly formed meeting Pod ,30/01/2019,0000444662,"2,510.00",Revenue,DES Electrical Services Ltd,131437
South Ribble Council,http://statistics.data.gov.uk/doc/local-authority/30UN,Area 3 - Parks/Leyland East West,Operational Furniture & Equip,4010,Sirius Multisaver 1.5m ind.serial no (TSTEU006/3),16/01/2019,0000444380,124.00,Revenue,DICK LEIGH,00026534
South Ribble Council,http://statistics.data.gov.uk/doc/local-authority/30UN,Area 3 - Parks/Leyland East West,Operational Furniture & Equip,4010,Treehog 70 ltr Kit Bag (TSTH4002),16/01/2019,0000444380,52.00,Revenue,DICK LEIGH,00026534
South Ribble Council,http://statistics.data.gov.uk/doc/local-authority/30UN,Area 3 - Parks/Leyland East West,Operational Furniture & Equip,4010,NUT (ST00009550801),16/01/2019,0000444380,2.46,Revenue,DICK LEIGH,00026534
South Ribble Council,http://statistics.data.gov.uk/doc/local-authority/30UN,Area 3 - Parks/Leyland East West,Operational Furniture & Equip,4010,DMM DYNEEMA SLING 11mm x 18cm + retainer (TSSP1118AS),16/01/2019,0000444380,13.90,Revenue,DICK LEIGH,00026534
South Ribble Council,http://statistics.data.gov.uk/doc/local-authority/30UN,Area 3 - Parks/Leyland East West,Operational Furniture & Equip,4010,DMM BOA 3 WAT KARABINER - LOCKSAFE 25kn,16/01/2019,0000444380,74.80,Revenue,DICK LEIGH,00026534
South Ribble Council,http://statistics.data.gov.uk/doc/local-authority/30UN,Area 3 - Parks/Leyland East West,Operational Furniture & Equip,4010,HITCHCLIMBER TRIPLE PULLEY RAPIDE (TSPUL100RAPIDE),16/01/2019,0000444380,45.00,Revenue,DICK LEIGH,00026534
South Ribble Council,http://statistics.data.gov.uk/doc/local-authority/30UN,Area 3 - Parks/Leyland East West,Clothing- Uniforms & Laundry,4410,CARVER BELAY GLOVES (NAME REDACTED),16/01/2019,0000444380,25.50,Revenue,DICK LEIGH,00026534
South Ribble Council,http://statistics.data.gov.uk/doc/local-authority/30UN,Information Services,Peripherals,4247,Telephone & Engineer Onsite Printer Support for period 18/10/18 - 17/10/19,09/01/2019,0000444267,780.00,Revenue,DIGITAL ID LTD,130641
South Ribble Council,http://statistics.data.gov.uk/doc/local-authority/30UN,Democratic Services,Subs to Statutory Bodies,4720,Annual Membership Fee 2018/19,09/01/2019,0000444129,500.00,Revenue,District Councils` Network,132234
South Ribble Council,http://statistics.data.gov.uk/doc/local-authority/30UN,Housing,Cap Grant- Improve Grants,C570,"DFG WORKS TO BATHROOM AT ADDRESS REDACTED GRANT 3760.00 AND CLIENT TO PAY 587 DIFFERENCE
",18/01/2019,0000444449,"3,760.00",Revenue,DML TILING LTD,132670
South Ribble Council,http://statistics.data.gov.uk/doc/local-authority/30UN,Property Services,Rep & Maint Premises,2020,,09/01/2019,0000444234,795.80,Revenue,DORMA UK LTD,00103305
South Ribble Council,http://statistics.data.gov.uk/doc/local-authority/30UN,Regeneration,Other Misc,4851,AV equipment and management for Battles Over Event,09/01/2019,0000444020,760.00,Revenue,Dramatic Moves Ltd,132633
South Ribble Council,http://statistics.data.gov.uk/doc/local-authority/30UN,Neighbourhood Admin & Support,Materials General,4040,,16/01/2019,0000442700,"1,234.80",Revenue,Durasak Ltd,132141
South Ribble Council,http://statistics.data.gov.uk/doc/local-authority/30UN,Shared Financial Services,Balance Sheet,0030,Credit Balance Refunded,16/01/2019,0000444392,652.68,Revenue,Durasak Ltd,132141
South Ribble Council,http://statistics.data.gov.uk/doc/local-authority/30UN,Area 2 - Waste Transport/Eastern & Central Teams,Materials General,4040,1 PTO DRIVE -,04/01/2019,0000443833,862.40,Revenue,Dynamic Pump Services Limited,132696
South Ribble Council,http://statistics.data.gov.uk/doc/local-authority/30UN,Area 2 - Waste Transport/Eastern & Central Teams,Materials General,4040,MUNCIE,09/01/2019,0000444199,620.00,Revenue,Dynamic Pump Services Limited,132696
South Ribble Council,http://statistics.data.gov.uk/doc/local-authority/30UN,Information Services,Peripherals,4246,Annual maintenance on 2 Fujitsu scanners for period 31/01/19 - 30/01/20,11/01/2019,0000444282,"1,240.00",Revenue,E FILE UK LTD,00110958
South Ribble Council,http://statistics.data.gov.uk/doc/local-authority/30UN,Information Services,Peripherals,4260,,11/01/2019,0000444299,"2,409.37",Revenue,EE Ltd,131653
South Ribble Council,http://statistics.data.gov.uk/doc/local-authority/30UN,Information Services,Peripherals,4260,,11/01/2019,0000444299,211.59,Revenue,EE Ltd,131653
South Ribble Council,http://statistics.data.gov.uk/doc/local-authority/30UN,Property Services,Rep & Maint Premises,2020,To carry out asbestos management surveys to the South Ribble Borough Council`s properties as per your tender,23/01/2019,0000444485,"1,040.00",Revenue,Eric Wright FM Ltd,132438
South Ribble Council,http://statistics.data.gov.uk/doc/local-authority/30UN,Information Services,Peripherals,4248,"ArcGIS maintenance renewal for period 06/01/19 - 05/01/20, as per quote ref.QUO-16800-W9L0P0",11/01/2019,0000444281,"14,919.00",Revenue,ESRI (UK) LTD,00053565
South Ribble Council,http://statistics.data.gov.uk/doc/local-authority/30UN,Area 3 - Parks/Leyland East West,Contract Hire & Lease Costs,3212,"Extension to hire of McConnel PA3430 Flail Hire Period 3.12.18 up t 14.12.18 (2 more weeks @ 300 per week)",02/01/2019,0000443928,600.00,Revenue,F R SHARROCK LTD,00034539
South Ribble Council,http://statistics.data.gov.uk/doc/local-authority/30UN,Democratic Services,Operational Furniture & Equip,4010,Please supply 1 x Retiring Mayor badges and 1 Retiring Mayoress/Consort Badge in presentation boxes as previously ordered.,09/01/2019,0000444001,"2,074.25",Revenue,FATTORINI SALES & PRODUCTION,131045
South Ribble Council,http://statistics.data.gov.uk/doc/local-authority/30UN,Area 2 - Waste Transport/Eastern & Central Teams,External Contractors Charges,4570,RESIDUAL WASTE COLLECTIONS DECEMBER 2018,16/01/2019,0000444325,"42,482.57",Revenue,FCC Environment Services (UK) Ltd,131612
South Ribble Council,http://statistics.data.gov.uk/doc/local-authority/30UN,Area 2 - Waste Transport/Eastern & Central Teams,External Contractors Charges,4570,DRY RECYCLABLE NON-TERRACED DECEMBER 2018,16/01/2019,0000444325,"43,506.64",Revenue,FCC Environment Services (UK) Ltd,131612
South Ribble Council,http://statistics.data.gov.uk/doc/local-authority/30UN,Area 2 - Waste Transport/Eastern & Central Teams,External Contractors Charges,4570,DRY RECYCLABLE TERRACED DECEMBER 2018,16/01/2019,0000444325,"2,066.66",Revenue,FCC Environment Services (UK) Ltd,131612
South Ribble Council,http://statistics.data.gov.uk/doc/local-authority/30UN,Area 2 - Waste Transport/Eastern & Central Teams,External Contractors Charges,4570,ORGANIC WASTE  NON TERRACED COLLECTIONS  DECEMBER 2018,16/01/2019,0000444325,"30,151.91",Revenue,FCC Environment Services (UK) Ltd,131612
South Ribble Council,http://statistics.data.gov.uk/doc/local-authority/30UN,Area 2 - Waste Transport/Eastern & Central Teams,External Contractors Charges,4570,SCHEDULE 2 PROPERTIES  DECEMBER 2018,16/01/2019,0000444325,"1,725.43",Revenue,FCC Environment Services (UK) Ltd,131612
South Ribble Council,http://statistics.data.gov.uk/doc/local-authority/30UN,Area 2 - Waste Transport/Eastern & Central Teams,External Contractors Charges,4570,COMMERCIAL WASTE COLLECTIONS  DECEMBER 2018,16/01/2019,0000444325,"6,761.80",Revenue,FCC Environment Services (UK) Ltd,131612
South Ribble Council,http://statistics.data.gov.uk/doc/local-authority/30UN,Area 2 - Waste Transport/Eastern & Central Teams,External Contractors Charges,4570,BULKY WASTE COLLECTIONS  DECEMBER 2018,16/01/2019,0000444325,934.56,Revenue,FCC Environment Services (UK) Ltd,131612
South Ribble Council,http://statistics.data.gov.uk/doc/local-authority/30UN,Area 2 - Waste Transport/Eastern & Central Teams,External Contractors Charges,4570,WEEE COLLECTIONS  DECEMBER 2018,16/01/2019,0000444325,349.34,Revenue,FCC Environment Services (UK) Ltd,131612
South Ribble Council,http://statistics.data.gov.uk/doc/local-authority/30UN,Area 2 - Waste Transport/Eastern & Central Teams,External Contractors Charges,4570,CLINICAL WASTE COLLECTIONS  DECEMBER 2018,16/01/2019,0000444325,594.92,Revenue,FCC Environment Services (UK) Ltd,131612
South Ribble Council,http://statistics.data.gov.uk/doc/local-authority/30UN,Area 2 - Waste Transport/Eastern & Central Teams,External Contractors Charges,4570,REPLACEMENT BINS  DECEMBER 2018,16/01/2019,0000444325,"5,000.00",Revenue,FCC Environment Services (UK) Ltd,131612
South Ribble Council,http://statistics.data.gov.uk/doc/local-authority/30UN,Area 2 - Waste Transport/Eastern & Central Teams,External Contractors Charges,4570,ADDITIONAL PROPERTIES  DECEMBER 2018,16/01/2019,0000444325,"1,880.44",Revenue,FCC Environment Services (UK) Ltd,131612
South Ribble Council,http://statistics.data.gov.uk/doc/local-authority/30UN,Area 2 - Waste Transport/Eastern & Central Teams,Balance Sheet,0030,Recycling - Retention Claim Back (July - December 2018),16/01/2019,0000444334,"22,476.28",Revenue,FCC Environment Services (UK) Ltd,131612
South Ribble Council,http://statistics.data.gov.uk/doc/local-authority/30UN,Area 2 - Waste Transport/Eastern & Central Teams,Balance Sheet,0030,Domestic - Retention Claim Back (July - December 2018),16/01/2019,0000444334,"16,814.19",Revenue,FCC Environment Services (UK) Ltd,131612
South Ribble Council,http://statistics.data.gov.uk/doc/local-authority/30UN,Area 2 - Waste Transport/Eastern & Central Teams,Balance Sheet,0030,Clinical Waste - Retention Claim Back (July - December 2018),16/01/2019,0000444334,68.72,Revenue,FCC Environment Services (UK) Ltd,131612
South Ribble Council,http://statistics.data.gov.uk/doc/local-authority/30UN,Area 2 - Waste Transport/Eastern & Central Teams,Balance Sheet,0030,Bulky Waste - Retention Claim Back (July - December 2018),16/01/2019,0000444334,208.61,Revenue,FCC Environment Services (UK) Ltd,131612
South Ribble Council,http://statistics.data.gov.uk/doc/local-authority/30UN,Neighbourhood Admin & Support,Materials General,4040,FOOTBALL PITCH LINE MARKER PAINT - PITCHMARKER Q2,23/01/2019,0000444499,435.00,Revenue,Fleet Line Markers Limited,131942
South Ribble Council,http://statistics.data.gov.uk/doc/local-authority/30UN,Area 3 - Parks/Leyland East West,Professional Fees,4510,,09/01/2019,0000444168,354.43,Revenue,FRIENDS OF HURST GRANGE PARK,00113405
South Ribble Council,http://statistics.data.gov.uk/doc/local-authority/30UN,Environmental Health,Agency Fees,1121,Recruitment of Consultant for 12 wks as per NAME REDACTED,30/01/2019,0000444481,768.00,Revenue,G2 Recruitment Solutions,132684
South Ribble Council,http://statistics.data.gov.uk/doc/local-authority/30UN,Environmental Health,Agency Fees,1121,Recruitment of Consultant for 12 wks as per NAME REDACTED,30/01/2019,0000444482,768.00,Revenue,G2 Recruitment Solutions,132684
South Ribble Council,http://statistics.data.gov.uk/doc/local-authority/30UN,Environmental Health,Agency Fees,1121,Recruitment of Consultant for 12 wks as per NAME REDACTED,30/01/2019,0000444483,768.00,Revenue,G2 Recruitment Solutions,132684
South Ribble Council,http://statistics.data.gov.uk/doc/local-authority/30UN,Environmental Health,Agency Fees,1121,Recruitment of Consultant for 12 wks as per NAME REDACTED,30/01/2019,0000444484,"1,024.00",Revenue,G2 Recruitment Solutions,132684
South Ribble Council,http://statistics.data.gov.uk/doc/local-authority/30UN,Environmental Health,Agency Fees,1121,Recruitment of Consultant for 12 wks as per NAME REDACTED,30/01/2019,0000444623,768.00,Revenue,G2 Recruitment Solutions,132684
South Ribble Council,http://statistics.data.gov.uk/doc/local-authority/30UN,Area 2 - Waste Transport/Eastern & Central Teams,Materials General,4040,"1 Engine, PMR20A3, JFC11622 ",23/01/2019,0000444355,929.94,Revenue,GIBSONS GARDEN MACHINERY LTD,00059051
South Ribble Council,http://statistics.data.gov.uk/doc/local-authority/30UN,Area 2 - Waste Transport/Eastern & Central Teams,Materials General,4040,"1 Engine , PMR21A3, JFC11482 ",23/01/2019,0000444451,929.94,Revenue,GIBSONS GARDEN MACHINERY LTD,00059051
South Ribble Council,http://statistics.data.gov.uk/doc/local-authority/30UN,Property Services,Professional Fees,4510,STRUCTURAL SURVEY - MOSS SIDE DEPOT,11/01/2019,0000444221,"1,500.00",Revenue,GLENN SLATER CONTRACTORS LTD,131181
South Ribble Council,http://statistics.data.gov.uk/doc/local-authority/30UN,Housing,Contributions,4730,GAS APPLIANCE REPAIRS FOR WINTER WARMTH SCHEME 2018/2019,18/01/2019,0000444438,"1,583.33",Revenue,GOS Heating Ltd,131387
South Ribble Council,http://statistics.data.gov.uk/doc/local-authority/30UN,Area 2 - Waste Transport/Eastern & Central Teams,Contract Hire & Lease Costs,3212,DELIVERY ON 12/10/18 (60.00) HIRE OF MECHNICAL ROAD SWEEPER W/C 15/10/18 (630.00),23/01/2019,0000444391,630.00,Revenue,GULLIVERS TRUCK HIRE LTD,130582
South Ribble Council,http://statistics.data.gov.uk/doc/local-authority/30UN,Area 2 - Waste Transport/Eastern & Central Teams,Materials General,4040,ASSORTED FILTER (IMPREST STOCK),30/01/2019,0000444708,404.45,Revenue,H & J SERVICES LTD,00114446
South Ribble Council,http://statistics.data.gov.uk/doc/local-authority/30UN,Neighbourhood Admin & Support,Vehicle Running Costs,3132,"15,000 LITRES DIESEL (@97.19 pence per litre)",18/01/2019,0000444341,"14,836.50",Revenue,Hall Fuels trading name of WFL (UK) Ltd,00116758
South Ribble Council,http://statistics.data.gov.uk/doc/local-authority/30UN,Neighbourhood Admin & Support,Vehicle Running Costs,3134,1500 LITRES GAS OIL (@52.48 pence per litre),18/01/2019,0000444348,813.00,Revenue,Hall Fuels trading name of WFL (UK) Ltd,00116758
South Ribble Council,http://statistics.data.gov.uk/doc/local-authority/30UN,Shared Assurance Services,Agency Fees,1121,"NAME REDACTED - interim Audit & Risk Manager for week ending period 15-10-2018 - 29-04-2018
Calculated from standard week of 37 hours - 1,532.90 x 24 weeks",11/01/2019,0000444222,"1,337.36",Revenue,Hays Specialist Recruitment Ltd,132288
South Ribble Council,http://statistics.data.gov.uk/doc/local-authority/30UN,Shared Assurance Services,Agency Fees,1121,"NAME REDACTED - interim Audit & Risk Manager for week ending period 15-10-2018 - 29-04-2018
Calculated from standard week of 37 hours - 1,532.90 x 24 weeks",30/01/2019,0000444285,"1,114.47",Revenue,Hays Specialist Recruitment Ltd,132288
South Ribble Council,http://statistics.data.gov.uk/doc/local-authority/30UN,Shared Assurance Services,Agency Fees,1121,"NAME REDACTED - interim Audit & Risk Manager for week ending period 15-10-2018 - 29-04-2018
Calculated from standard week of 37 hours - 1,532.90 x 24 weeks",30/01/2019,0000444461,800.84,Revenue,Hays Specialist Recruitment Ltd,132288
South Ribble Council,http://statistics.data.gov.uk/doc/local-authority/30UN,Area 3 - Parks/Leyland East West,Capital Expenditure,C230,"Design, supply and installation of 2 No 3 cubicle semi-automatic toilet block including pressure washers and H2 control systems",16/01/2019,0000444258,"23,337.83",Revenue,Healthmatic Limited,132565
South Ribble Council,http://statistics.data.gov.uk/doc/local-authority/30UN,Area 3 - Parks/Leyland East West,Capital Expenditure,C230,Amendment of consumer unit to 3 phase in 1 toilet unit,16/01/2019,0000444258,730.00,Revenue,Healthmatic Limited,132565
South Ribble Council,http://statistics.data.gov.uk/doc/local-authority/30UN,Area 3 - Parks/Leyland East West,Capital Expenditure,C230,Addition of bins to both units,16/01/2019,0000444258,"3,048.00",Revenue,Healthmatic Limited,132565
South Ribble Council,http://statistics.data.gov.uk/doc/local-authority/30UN,Area 3 - Parks/Leyland East West,Capital Expenditure,C230,6 NO. COIN COLLECTION BAGS FOR TOILETS UNITS,11/01/2019,0000444290,480.00,Revenue,Healthmatic Limited,132565
South Ribble Council,http://statistics.data.gov.uk/doc/local-authority/30UN,Shared Financial Services,Balance Sheet,0140,,16/01/2019,0000444140,414.10,Revenue,HM REVENUE & CUSTOMS,00024837
South Ribble Council,http://statistics.data.gov.uk/doc/local-authority/30UN,Property Services,Rep & Maint Premises,2020,LABOUR To carry out painting works in the IT suite at the Civic Centre as per your quotation No 170,02/01/2019,0000444064,"2,000.00",Revenue,Holden Building Solutions Limited,132607
South Ribble Council,http://statistics.data.gov.uk/doc/local-authority/30UN,Property Services,Rep & Maint Premises,2020,materials,02/01/2019,0000444064,457.66,Revenue,Holden Building Solutions Limited,132607
South Ribble Council,http://statistics.data.gov.uk/doc/local-authority/30UN,Homelessness,Contractors Charges 5,5311,"WE Room 4,ADDRESS REDACTED 17/12/2018 - 8/1/2019 = 22 days at 27.14",23/01/2019,0000444480,597.08,Revenue,Homeless Housing Preston Ltd,132710
South Ribble Council,http://statistics.data.gov.uk/doc/local-authority/30UN,Planning,Balance Sheet,0030,Community Infrastructure Levy (CIL) Payment for Parish Council re: planning application 07/2017/0587/VAR,18/01/2019,0000444250,"1,942.06",Revenue,HUTTON PARISH COUNCIL,00023566
South Ribble Council,http://statistics.data.gov.uk/doc/local-authority/30UN,Housing,Cap Grant- Improve Grants,C570,DFG WORKS TO BATHROOM AT ADDRESS REDACTED ONWARD PROPERTY � GRANT PAYABLE OF 50%COST 1805.00,11/01/2019,0000444266,"2,047.50",Revenue,HUYTON PLUMBING AND HEATING LTD,131138
South Ribble Council,http://statistics.data.gov.uk/doc/local-authority/30UN,Democratic Services,Other Misc,4970,PART 2 - INTERACTIVE VOTER REGISTRATION (AUTOMATED RESPONSE CHANNELS FOR ANNUAL CANVASS),11/01/2019,0000444205,312.06,Revenue,IDOX PLC,00104485
South Ribble Council,http://statistics.data.gov.uk/doc/local-authority/30UN,Information Services,Peripherals,4248,"Nessus Installation 1900.00; Annual Nessus Licence 2200.00 and RapidSpike Licence 1200.00, as per quote ref. 763",18/01/2019,0000444402,"5,300.00",Revenue,Info Security People Ltd,132693
South Ribble Council,http://statistics.data.gov.uk/doc/local-authority/30UN,Revenues Plus,Professional Fees,4510,PHOTOVOLTAIC INSTALLATION AT ADDRESS REDACTED,30/01/2019,0000444252,550.00,Revenue,Inform CPI Ltd,131666
South Ribble Council,http://statistics.data.gov.uk/doc/local-authority/30UN,Information Services,Peripherals,4246,Corporate Membership 01/01/19 - 31/12/19,23/01/2019,0000444531,350.00,Revenue,INFORMATION & RECORD MANAGEMENT SOCIETY,130889
South Ribble Council,http://statistics.data.gov.uk/doc/local-authority/30UN,Information Services,Peripherals,4243,CoreCAL ALNG LicSAPk MVL; WinRmtDsktpSrvcsCAL ALNG LicSAPk MVL; WinSvrSTDCore ALNG LicSAPk MVL 2Lic ,04/01/2019,0000444157,"8,635.69",Revenue,INSIGHT UK,00120744
South Ribble Council,http://statistics.data.gov.uk/doc/local-authority/30UN,Revenues Plus,Professional Fees,4520,IRRV Forum Fees,30/01/2019,0000444152,"1,200.00",Revenue,INST OF REVENUES RATING & VALUATION,00024950
South Ribble Council,http://statistics.data.gov.uk/doc/local-authority/30UN,Area 1 - Penwortham Western Parishes,Contract Hire & Lease Costs,3212,"EXTENSION TO HIRE OF FLATBED TIPPER (DF15 BZV)3.12.18 UP TO AND INCLUDING 14.12.18 (2 WEEKS)",30/01/2019,0000443998,879.74,Revenue,Intack Self Drive Ltd,132314
South Ribble Council,http://statistics.data.gov.uk/doc/local-authority/30UN,Property Services,Rep & Maint Premises,2020,"Annual Contract for 2018-2019  schedule ref 1196  dated 6.4.2018Worden Arts Centre",09/01/2019,0000444146,150.00,Revenue,JAMES MERCER GROUP LTD,00028587
South Ribble Council,http://statistics.data.gov.uk/doc/local-authority/30UN,Property Services,Rep & Maint Premises,2020,"Annual Contract for 2018 - 2019  schedule ref 1196 dated 6.4.2018ADDRESS REDACTED",09/01/2019,0000444146,150.00,Revenue,JAMES MERCER GROUP LTD,00028587
South Ribble Council,http://statistics.data.gov.uk/doc/local-authority/30UN,Property Services,Rep & Maint Premises,2020,"Annual Contract for 2018 - 2019  schedule ref 1196 dated 6.4.2018Derby Wing",09/01/2019,0000444146,150.00,Revenue,JAMES MERCER GROUP LTD,00028587
South Ribble Council,http://statistics.data.gov.uk/doc/local-authority/30UN,Property Services,Rep & Maint Premises,2020,Please replace the boiler at ADDRESS REDACTED as per your quotation detailed in the e-mail dated 13th December 2018,18/01/2019,0000444454,"3,670.00",Revenue,JAMES MERCER GROUP LTD,00028587
South Ribble Council,http://statistics.data.gov.uk/doc/local-authority/30UN,Property Services,Rep & Maint Premises,2020,Annual Contract for 2018 - 2019 for the maintenance of the Trend BMS HVAC 4 x day visits (TBA)  - at the Civic Centre Offices ,02/01/2019,0000444120,390.00,Revenue,JBC CONTROL SYSTEM,130816
South Ribble Council,http://statistics.data.gov.uk/doc/local-authority/30UN,Homelessness,Contributions,4730,"Payment of Bond under landlord incentive scheme for ADDRESS REDACTEDBond is 750, tenant has paid 200 ",02/01/2019,0000444137,550.00,Revenue,NAME REDACTED,132706
South Ribble Council,http://statistics.data.gov.uk/doc/local-authority/30UN,Planning,Advertising,4841,Press notices for planning applications 2018/19,11/01/2019,0000444248,567.00,Revenue,JPI Media - JOHNSTON PUBLISHING (NORTH WEST),00011345
South Ribble Council,http://statistics.data.gov.uk/doc/local-authority/30UN,Planning,Advertising,4841,Press notices for planning applications 2018/19,11/01/2019,0000444260,567.00,Revenue,JPI Media - JOHNSTON PUBLISHING (NORTH WEST),00011345
South Ribble Council,http://statistics.data.gov.uk/doc/local-authority/30UN,Planning,Advertising,4841,Press notices for planning applications 2018/19,18/01/2019,0000444354,"1,620.00",Revenue,JPI Media - JOHNSTON PUBLISHING (NORTH WEST),00011345
South Ribble Council,http://statistics.data.gov.uk/doc/local-authority/30UN,Area 3 - Parks/Leyland East West,Contract Hire & Lease Costs,3212,HIRE OF 1.5 TON MINI EXCAVATOR C/W TRAILER - ON HIRE MONDAY 26TH NOVEMBER 2018 FOR 1 WEEKS HIRE,16/01/2019,0000444210,633.00,Revenue,K H HIRE SERVICES,00012933
South Ribble Council,http://statistics.data.gov.uk/doc/local-authority/30UN,Area 3 - Parks/Leyland East West,Contract Hire & Lease Costs,3212,"1.5 tonne Digger
On hire 7.1.19",30/01/2019,0000444610,337.50,Revenue,K H HIRE SERVICES,00012933
South Ribble Council,http://statistics.data.gov.uk/doc/local-authority/30UN,Area 3 - Parks/Leyland East West,External Contractors Charges,4570,"GRASS CUTTING AND TRAFFIC MANAGEMENT - LIVERPOOL ROAD, SAMLESBURY AND END OF M65",25/01/2019,0000444538,"3,500.00",Revenue,KAYS TRAFFIC MANAGEMENT LTD,00072342
South Ribble Council,http://statistics.data.gov.uk/doc/local-authority/30UN,Homelessness,Contributions,4730,"SRBC tenancy supportQ3 Dec 2018 - Feb 2019",09/01/2019,0000444032,"4,875.00",Revenue,KEY UNLOCKING FUTURES LTD,00098601
South Ribble Council,http://statistics.data.gov.uk/doc/local-authority/30UN,Homelessness,Contributions,4730,"Housing advice and mediationQ4 Jan-Mar 2019",09/01/2019,0000444204,"4,875.00",Revenue,KEY UNLOCKING FUTURES LTD,00098601
South Ribble Council,http://statistics.data.gov.uk/doc/local-authority/30UN,Environmental Health,Operational Furniture & Equip,4010,Purchase of ULV machine - per NAME REDACTED,30/01/2019,0000444477,535.00,Revenue,KILLGERM CHEMICALS LTD,00025894
South Ribble Council,http://statistics.data.gov.uk/doc/local-authority/30UN,Planning,Professional Fees,4510,Annual Service Level Agreement 2018-19,16/01/2019,0000444384,703.13,Revenue,Lancashire Archaeological Advisory Service,132007
South Ribble Council,http://statistics.data.gov.uk/doc/local-authority/30UN,Area 2 - Waste Transport/Eastern & Central Teams,Materials General,4040,1 x 205l drum 10/30 oil,30/01/2019,0000444513,354.64,Revenue,LANCASHIRE OILS LTD,131167
South Ribble Council,http://statistics.data.gov.uk/doc/local-authority/30UN,Area 2 - Waste Transport/Eastern & Central Teams,Waste Disposal Charges,5112,October 2018 - Incineration of Clinical Waste,30/01/2019,0000444574,616.55,Revenue,LANCASHIRE TEACHING FT,00120715
South Ribble Council,http://statistics.data.gov.uk/doc/local-authority/30UN,Housing,Cap Grant- Improve Grants,C570,DFG WORKS TO SUPPLY AND FIT THROUGH FLOOR LIFT AT 5 BADGERS WAY AS PER QUOTE SUPPLED ,09/01/2019,0000444163,"12,859.00",Revenue,LANCS COUNTY COUNCIL,00041645
South Ribble Council,http://statistics.data.gov.uk/doc/local-authority/30UN,Housing,Cap Grant- Improve Grants,C570,DFG WORKS TO SUPPLY AND INSTALL A STAIRLIFT AT 14 RYAN CLOSE AS PER QUOTE SUPPLID,18/01/2019,0000444426,781.00,Revenue,LANCS COUNTY COUNCIL,00041645
South Ribble Council,http://statistics.data.gov.uk/doc/local-authority/30UN,Legal,Other Local Authorities,4530,LAND CHARGES - DECEMBER 2018,18/01/2019,0000444440,495.00,Revenue,LANCS COUNTY COUNCIL,00041645
South Ribble Council,http://statistics.data.gov.uk/doc/local-authority/30UN,Housing,Cap Grant- Improve Grants,C570,DFG WORKS FOR ADDRESS REDACTED- SUPPLY AND INSTALLATION OF STAIRLIFT AS PER YOUR QUOTE SUPPLIED,23/01/2019,0000444491,"7,627.00",Revenue,LANCS COUNTY COUNCIL,00041645
South Ribble Council,http://statistics.data.gov.uk/doc/local-authority/30UN,Housing,Cap Grant- Improve Grants,C570,DFG WORKS TO REPLACE OLD STAIRLIFT AS PER QUOTE SUPPLIED ATADDRESS REDACTED,25/01/2019,0000444592,"6,951.00",Revenue,LANCS COUNTY COUNCIL,00041645
South Ribble Council,http://statistics.data.gov.uk/doc/local-authority/30UN,Area 2 - Waste Transport/Eastern & Central Teams,Contractors Charges 5,5412,"Quarter 2 Disposal Fee, Landfill Tax & 5% Admin Fee",30/01/2019,0000444627,"54,730.87",Revenue,LANCS COUNTY COUNCIL,00041645
South Ribble Council,http://statistics.data.gov.uk/doc/local-authority/30UN,Property Services,Advertising,4842,Google Street View for Leyland Market as per NAME REDACTED the Market Manager ,30/01/2019,0000444641,640.00,Revenue,LOCAL EXPOSURE LTD,131139
South Ribble Council,http://statistics.data.gov.uk/doc/local-authority/30UN,Housing,Cap Grant- Improve Grants,C570,DFG WORKS TO BATHROOM ATADDRESS REDACTED AS PER QUOTE SUPPLIED,23/01/2019,0000444475,"4,290.00",Revenue,LTL CONSTRUCTION & MAINTENANCE LTD,131406
South Ribble Council,http://statistics.data.gov.uk/doc/local-authority/30UN,Housing,Cap Grant- Improve Grants,C570,DFG WORKS TO BATHROOM ATADDRESS REDACTED AS PER YOUR QUOTE,23/01/2019,0000444476,"3,460.00",Revenue,LTL CONSTRUCTION & MAINTENANCE LTD,131406
South Ribble Council,http://statistics.data.gov.uk/doc/local-authority/30UN,Housing,Cap Grant- Improve Grants,C570,DFG WORKS FOR LEVEL ACCESS BATHROOM AT ADDRESS REDACTED.New progress property- 50% paid via the grant ,11/01/2019,0000444289,"1,922.50",Revenue,MAHONEY CONTRACTORS LTD,131271
South Ribble Council,http://statistics.data.gov.uk/doc/local-authority/30UN,Housing,Cap Grant- Improve Grants,C570,DFG WORKS FOR LEVEL ACCESS BATHROOM AT ADDRESS REDACTED. New progress property -50% paid via the grant,30/01/2019,0000444612,"1,645.00",Revenue,MAHONEY CONTRACTORS LTD,131271
South Ribble Council,http://statistics.data.gov.uk/doc/local-authority/30UN,Housing,Cap Grant- Improve Grants,C570,DFG WORKS FOR LEVEL ACCESS BATHROOM AT ADDRESS REDACTED. New progress property -50% paid via the grant,30/01/2019,0000444613,"1,935.00",Revenue,MAHONEY CONTRACTORS LTD,131271
South Ribble Council,http://statistics.data.gov.uk/doc/local-authority/30UN,Housing,Cap Grant- Improve Grants,C570,DFG WORKS FOR LEVEL ACCESS BATHROOM AT ADDRESS REDACTED. New progress property -50% paid via the grant,30/01/2019,0000444635,"1,760.00",Revenue,MAHONEY CONTRACTORS LTD,131271
South Ribble Council,http://statistics.data.gov.uk/doc/local-authority/30UN,Housing,Cap Grant- Improve Grants,C570,DFG WORKS FOR LEVEL ACCESS BATHROOM ATADDRESS REDACTED. New progress property- 50 paid via the gran,30/01/2019,0000444636,"1,955.00",Revenue,MAHONEY CONTRACTORS LTD,131271
South Ribble Council,http://statistics.data.gov.uk/doc/local-authority/30UN,Housing,Cap Grant- Improve Grants,C570,DFG WORKS FOR LEVEL ACCESS BATHROOMAT ADDRESS REDACTED.New progress property  50%paid via the grant,30/01/2019,0000444639,"2,195.00",Revenue,MAHONEY CONTRACTORS LTD,131271
South Ribble Council,http://statistics.data.gov.uk/doc/local-authority/30UN,Area 2 - Waste Transport/Eastern & Central Teams,Materials General,4040,SCHOOL LANE,16/01/2019,0000444364,80.00,Revenue,Main Street Signs Ltd,131922
South Ribble Council,http://statistics.data.gov.uk/doc/local-authority/30UN,Area 2 - Waste Transport/Eastern & Central Teams,Materials General,4040,DUNKIRK LANE,16/01/2019,0000444364,41.00,Revenue,Main Street Signs Ltd,131922
South Ribble Council,http://statistics.data.gov.uk/doc/local-authority/30UN,Area 2 - Waste Transport/Eastern & Central Teams,Materials General,4040,PEACOCK HALL ROAD,16/01/2019,0000444364,90.00,Revenue,Main Street Signs Ltd,131922
South Ribble Council,http://statistics.data.gov.uk/doc/local-authority/30UN,Area 2 - Waste Transport/Eastern & Central Teams,Materials General,4040,MEADOWCROFT ROAD,16/01/2019,0000444364,90.00,Revenue,Main Street Signs Ltd,131922
South Ribble Council,http://statistics.data.gov.uk/doc/local-authority/30UN,Area 2 - Waste Transport/Eastern & Central Teams,Materials General,4040,STONECROFT ROAD,16/01/2019,0000444364,41.00,Revenue,Main Street Signs Ltd,131922
South Ribble Council,http://statistics.data.gov.uk/doc/local-authority/30UN,Area 2 - Waste Transport/Eastern & Central Teams,Materials General,4040,YORK CLOSE  T,16/01/2019,0000444364,42.00,Revenue,Main Street Signs Ltd,131922
South Ribble Council,http://statistics.data.gov.uk/doc/local-authority/30UN,Area 2 - Waste Transport/Eastern & Central Teams,Materials General,4040,NORFOLK CLOSE  T,16/01/2019,0000444364,45.00,Revenue,Main Street Signs Ltd,131922
South Ribble Council,http://statistics.data.gov.uk/doc/local-authority/30UN,Area 2 - Waste Transport/Eastern & Central Teams,Materials General,4040,HIGH GREEN  T,16/01/2019,0000444364,42.00,Revenue,Main Street Signs Ltd,131922
South Ribble Council,http://statistics.data.gov.uk/doc/local-authority/30UN,Area 2 - Waste Transport/Eastern & Central Teams,Materials General,4040,BANNISTER DRIVE,16/01/2019,0000444364,176.00,Revenue,Main Street Signs Ltd,131922
South Ribble Council,http://statistics.data.gov.uk/doc/local-authority/30UN,Area 2 - Waste Transport/Eastern & Central Teams,Materials General,4040,DELIVERY CHARGE,16/01/2019,0000444364,44.50,Revenue,Main Street Signs Ltd,131922
South Ribble Council,http://statistics.data.gov.uk/doc/local-authority/30UN,Property Services,Rep & Maint Premises,2020,2018/ 2019 annual gutter inspections at ADDRESS REDACTED,18/01/2019,0000444423,457.00,Revenue,MAINCOAT LTD,00099244
South Ribble Council,http://statistics.data.gov.uk/doc/local-authority/30UN,Property Services,Rep & Maint Premises,2020,2018 / 2019 annual gutter inspections at ADDRESS REDACTED,18/01/2019,0000444423,118.25,Revenue,MAINCOAT LTD,00099244
South Ribble Council,http://statistics.data.gov.uk/doc/local-authority/30UN,Property Services,Rep & Maint Premises,2020,2018 / 2019 annual gutter inspections at ADDRESS REDACTED,18/01/2019,0000444423,118.25,Revenue,MAINCOAT LTD,00099244
South Ribble Council,http://statistics.data.gov.uk/doc/local-authority/30UN,Property Services,Rep & Maint Premises,2020,2018 / 2019 annual gutter inspections at ADDRESS REDACTED,18/01/2019,0000444423,77.55,Revenue,MAINCOAT LTD,00099244
South Ribble Council,http://statistics.data.gov.uk/doc/local-authority/30UN,Property Services,Rep & Maint Premises,2020,2018 / 2019 annual gutter inspections at ADDRESS REDACTED,18/01/2019,0000444423,118.25,Revenue,MAINCOAT LTD,00099244
South Ribble Council,http://statistics.data.gov.uk/doc/local-authority/30UN,Property Services,Rep & Maint Premises,2020,2018 / 2019 annual gutter inspections at ADDRESS REDACTED,18/01/2019,0000444423,199.65,Revenue,MAINCOAT LTD,00099244
South Ribble Council,http://statistics.data.gov.uk/doc/local-authority/30UN,Property Services,Rep & Maint Premises,2020,2018 / 2019 annual gutter inspections at ADDRESS REDACTED,18/01/2019,0000444423,118.25,Revenue,MAINCOAT LTD,00099244
South Ribble Council,http://statistics.data.gov.uk/doc/local-authority/30UN,Property Services,Rep & Maint Premises,2020,2018 / 2019 annual gutter inspections at ADDRESS REDACTED,18/01/2019,0000444423,118.25,Revenue,MAINCOAT LTD,00099244
South Ribble Council,http://statistics.data.gov.uk/doc/local-authority/30UN,Property Services,Rep & Maint Premises,2020,2018 / 2019 annual gutter inspections at ADDRESS REDACTED,18/01/2019,0000444423,77.55,Revenue,MAINCOAT LTD,00099244
South Ribble Council,http://statistics.data.gov.uk/doc/local-authority/30UN,Property Services,Rep & Maint Premises,2020,2018 / 2019 annual gutter inspections at ADDRESS REDACTED,18/01/2019,0000444423,158.95,Revenue,MAINCOAT LTD,00099244
South Ribble Council,http://statistics.data.gov.uk/doc/local-authority/30UN,Property Services,Rep & Maint Premises,2020,2018 / 2019 annual gutter inspections at ADDRESS REDACTED,18/01/2019,0000444423,77.55,Revenue,MAINCOAT LTD,00099244
South Ribble Council,http://statistics.data.gov.uk/doc/local-authority/30UN,Property Services,Rep & Maint Premises,2020,2018 / 2019 annual gutter inspections at ADDRESS REDACTED,18/01/2019,0000444423,77.55,Revenue,MAINCOAT LTD,00099244
South Ribble Council,http://statistics.data.gov.uk/doc/local-authority/30UN,Property Services,Rep & Maint Premises,2020,2018 / 2019 annual gutter inspections at ADDRESS REDACTED,18/01/2019,0000444423,77.55,Revenue,MAINCOAT LTD,00099244
South Ribble Council,http://statistics.data.gov.uk/doc/local-authority/30UN,Property Services,Rep & Maint Premises,2020,2018 / 2019 annual gutter inspections at units ADDRESS REDACTED,18/01/2019,0000444423,195.80,Revenue,MAINCOAT LTD,00099244
South Ribble Council,http://statistics.data.gov.uk/doc/local-authority/30UN,Property Services,Rep & Maint Premises,2020,"Leyland Leisure Centre repair three leaks to the roof- in the corridor towards the gym, over the desk in the duty managers office",18/01/2019,0000444453,708.00,Revenue,MAINCOAT LTD,00099244
South Ribble Council,http://statistics.data.gov.uk/doc/local-authority/30UN,Property Services,Rep & Maint Premises,2020,materials,18/01/2019,0000444453,472.00,Revenue,MAINCOAT LTD,00099244
South Ribble Council,http://statistics.data.gov.uk/doc/local-authority/30UN,Property Services,Rep & Maint Premises,2020,2018 / 2019 annual contract for gutter cleaning at Moss Side Depot,23/01/2019,0000444474,199.65,Revenue,MAINCOAT LTD,00099244
South Ribble Council,http://statistics.data.gov.uk/doc/local-authority/30UN,Property Services,Rep & Maint Premises,2020,2018 / 2019 annual contract for gutter cleaning at Leyland market,23/01/2019,0000444474,118.25,Revenue,MAINCOAT LTD,00099244
South Ribble Council,http://statistics.data.gov.uk/doc/local-authority/30UN,Property Services,Rep & Maint Premises,2020,2018 / 2019 annual contract for gutter cleaning at Bamber Bridge Community Centre,23/01/2019,0000444474,97.90,Revenue,MAINCOAT LTD,00099244
South Ribble Council,http://statistics.data.gov.uk/doc/local-authority/30UN,Property Services,Rep & Maint Premises,2020,2018 / 2019 annual contract for gutter cleaning at Higher Walton Community Centre,23/01/2019,0000444474,97.90,Revenue,MAINCOAT LTD,00099244
South Ribble Council,http://statistics.data.gov.uk/doc/local-authority/30UN,Property Services,Rep & Maint Premises,2020,2018/ 2019 annual contract for gutter cleaning at Moss Side Community Centre,23/01/2019,0000444474,97.90,Revenue,MAINCOAT LTD,00099244
South Ribble Council,http://statistics.data.gov.uk/doc/local-authority/30UN,Property Services,Rep & Maint Premises,2020,2018 / 2019 annual contract for gutter cleaning at Leyland Museum,23/01/2019,0000444474,97.90,Revenue,MAINCOAT LTD,00099244
South Ribble Council,http://statistics.data.gov.uk/doc/local-authority/30UN,Property Services,Rep & Maint Premises,2020,2018/ 2019 annual contract for gutter cleaning at Longton Brickcroft,23/01/2019,0000444474,118.25,Revenue,MAINCOAT LTD,00099244
South Ribble Council,http://statistics.data.gov.uk/doc/local-authority/30UN,Property Services,Rep & Maint Premises,2020,2018 / 2019 annual contract for gutter cleaning at Leyland Leisure Centre,23/01/2019,0000444474,199.65,Revenue,MAINCOAT LTD,00099244
South Ribble Council,http://statistics.data.gov.uk/doc/local-authority/30UN,Property Services,Rep & Maint Premises,2020,2018 / 2019 annual contract for gutter cleaning at Bamber Bridge Leisure Centre,23/01/2019,0000444474,199.65,Revenue,MAINCOAT LTD,00099244
South Ribble Council,http://statistics.data.gov.uk/doc/local-authority/30UN,Property Services,Rep & Maint Premises,2020,2018 / 2019 annual contract for gutter cleaning at Penwortham Leisure Centre,23/01/2019,0000444474,199.65,Revenue,MAINCOAT LTD,00099244
South Ribble Council,http://statistics.data.gov.uk/doc/local-authority/30UN,Property Services,Rep & Maint Premises,2020,2018 / 2019 annual contract for gutter cleaning at South Ribble Tennis Centre,23/01/2019,0000444474,199.65,Revenue,MAINCOAT LTD,00099244
South Ribble Council,http://statistics.data.gov.uk/doc/local-authority/30UN,Property Services,Rep & Maint Premises,2020,2018 / 2019 annual contract for gutter cleaning at the Civic Centre,23/01/2019,0000444474,97.90,Revenue,MAINCOAT LTD,00099244
South Ribble Council,http://statistics.data.gov.uk/doc/local-authority/30UN,Property Services,Rep & Maint Premises,2020,2018/ 2019 annual contract for gutter cleaning at Carr Street Community Centre,23/01/2019,0000444474,97.90,Revenue,MAINCOAT LTD,00099244
South Ribble Council,http://statistics.data.gov.uk/doc/local-authority/30UN,Property Services,Rep & Maint Premises,2020,2018 / 2019 annual contract for gutter cleaning at Holland House Farm,23/01/2019,0000444474,77.55,Revenue,MAINCOAT LTD,00099244
South Ribble Council,http://statistics.data.gov.uk/doc/local-authority/30UN,Property Services,Rep & Maint Premises,2020,"2018 / 2019 annual contract for gutter cleaning at Crossroads & Playground toilets Worden Park,Withy Grove & Hope Terrace ",23/01/2019,0000444474,253.00,Revenue,MAINCOAT LTD,00099244
South Ribble Council,http://statistics.data.gov.uk/doc/local-authority/30UN,Property Services,Rep & Maint Premises,2020,2018 / 2019 annual contract for gutter cleaning at Gregson Lane Sports Pavilion,23/01/2019,0000444474,77.55,Revenue,MAINCOAT LTD,00099244
South Ribble Council,http://statistics.data.gov.uk/doc/local-authority/30UN,Property Services,Rep & Maint Premises,2020,2018 / 2019 annual contract for gutter cleaning at Hern Avenue & St Cuthbert`s Pavilions,23/01/2019,0000444474,77.55,Revenue,MAINCOAT LTD,00099244
South Ribble Council,http://statistics.data.gov.uk/doc/local-authority/30UN,Property Services,Rep & Maint Premises,2020,2018 / 2019 annual contract for gutter cleaning at Withy Grove & Holme Pavilions,23/01/2019,0000444474,77.55,Revenue,MAINCOAT LTD,00099244
South Ribble Council,http://statistics.data.gov.uk/doc/local-authority/30UN,Property Services,Rep & Maint Premises,2020,2018 / 2019 annual contract for gutter cleaning at Hurst Grange & Kingsfold Pavilions,23/01/2019,0000444474,77.55,Revenue,MAINCOAT LTD,00099244
South Ribble Council,http://statistics.data.gov.uk/doc/local-authority/30UN,Property Services,Rep & Maint Premises,2020,2018 / 2019 annual contract for gutter cleaning at Longton Pavilion,23/01/2019,0000444474,77.55,Revenue,MAINCOAT LTD,00099244
South Ribble Council,http://statistics.data.gov.uk/doc/local-authority/30UN,Property Services,Rep & Maint Premises,2020,2018 / 2019 annual contract for gutter cleaning at Hutton Pavilion,23/01/2019,0000444474,77.55,Revenue,MAINCOAT LTD,00099244
South Ribble Council,http://statistics.data.gov.uk/doc/local-authority/30UN,Property Services,Rep & Maint Premises,2020,2018 / 2019 annual contract for gutter cleaning at Much Hoole Pavilion,23/01/2019,0000444474,77.55,Revenue,MAINCOAT LTD,00099244
South Ribble Council,http://statistics.data.gov.uk/doc/local-authority/30UN,Property Services,Rep & Maint Premises,2020,2018 / 2019 annual contract for gutter cleaning at Worden park Pavilions,23/01/2019,0000444474,77.55,Revenue,MAINCOAT LTD,00099244
South Ribble Council,http://statistics.data.gov.uk/doc/local-authority/30UN,Property Services,Rep & Maint Premises,2020,2018 / 2019 annual contract for gutter cleaning at Moss Side Pavilion,23/01/2019,0000444474,78.65,Revenue,MAINCOAT LTD,00099244
South Ribble Council,http://statistics.data.gov.uk/doc/local-authority/30UN,Property Services,Rep & Maint Premises,2020,"2018 / 2019 annual contract for gutter cleaning at Worden Arts centre, Coffee shop, Derby Wing, Bungalow, Bothy, Gardeners ",23/01/2019,0000444474,317.90,Revenue,MAINCOAT LTD,00099244
South Ribble Council,http://statistics.data.gov.uk/doc/local-authority/30UN,Property Services,Rep & Maint Premises,2020,Worden Park - assess  vandalism - repair/replace lead to the areas that are missing,30/01/2019,0000444532,"1,350.00",Revenue,MAINCOAT LTD,00099244
South Ribble Council,http://statistics.data.gov.uk/doc/local-authority/30UN,Property Services,Rep & Maint Premises,2020,,30/01/2019,0000444532,784.35,Revenue,MAINCOAT LTD,00099244
South Ribble Council,http://statistics.data.gov.uk/doc/local-authority/30UN,Legal,Legal,4821,defamation settlement,11/01/2019,0000444265,900.00,Revenue,Manley`s Solicitors Ltd,132719
South Ribble Council,http://statistics.data.gov.uk/doc/local-authority/30UN,Property Services,Rep & Maint Premises,2020,Civic Centre West Paddock Leyland fix issues with Staff Entrance door  as per job number J64819,16/01/2019,0000444116,250.00,Revenue,MBE Glazing Systems Limited,132685
South Ribble Council,http://statistics.data.gov.uk/doc/local-authority/30UN,Area 2 - Waste Transport/Eastern & Central Teams,External Contractors Charges,4570,SPEC REPAIR - JFC11640 - PO12JZC - TH,16/01/2019,0000444211,280.00,Revenue,MJC Auto Electrics,132514
South Ribble Council,http://statistics.data.gov.uk/doc/local-authority/30UN,Area 1 - Penwortham Western Parishes,Professional Fees,4521,PROVISION STRAY DOG SERVICE - TO COVER DECEMBER 2018,30/01/2019,0000444750,584.78,Revenue,MORNINGSIDE KENNELS,00067755
South Ribble Council,http://statistics.data.gov.uk/doc/local-authority/30UN,Chief Executive`s Management,External Contractors Charges,4575,LEADERSHIP TEAM ROADSHOW - CATERING FOR THREE SESSIONS THROUGHOUT THE MORNING OF 16 JAN 2019.,23/01/2019,0000444472,522.50,Revenue,MOSS HOUSE FARM,00121808
South Ribble Council,http://statistics.data.gov.uk/doc/local-authority/30UN,Information Services,Peripherals,4248,SolutionCare Services & Support renewal for period 16/02/19 - 15/02/20,30/01/2019,0000444659,"9,525.00",Revenue,NETCALL TELECOM LTD,00121552
South Ribble Council,http://statistics.data.gov.uk/doc/local-authority/30UN,HR & Communications,Advertising,4848,"FORWARD PRINTING AND DELIVERY RUN 50,50,DELIVERY TO WARRINGTON AND LEYLAND 420.00,DESIGN 1,730.00 ",18/01/2019,0000444253,"2,100.00",Revenue,NEWSQUEST MEDIA GROUP LTD,00121934
South Ribble Council,http://statistics.data.gov.uk/doc/local-authority/30UN,HR & Communications,Advertising,4848,FORWARD PRINTING AND DELIVERY.,18/01/2019,0000444253,"2,576.62",Revenue,NEWSQUEST MEDIA GROUP LTD,00121934
South Ribble Council,http://statistics.data.gov.uk/doc/local-authority/30UN,Property Services,Rep & Maint Premises,2020,"Attend Worden Park, Leyland and deal with the alarm going off on the pump ",30/01/2019,0000444353,297.50,Revenue,NORTH WEST MAINTENANCE SERVICES LTD,00114763
South Ribble Council,http://statistics.data.gov.uk/doc/local-authority/30UN,Property Services,Rep & Maint Premises,2020,To undertake repair works at the pumping station worden park as per quotation ref 1310,23/01/2019,0000444471,420.00,Revenue,NORTH WEST MAINTENANCE SERVICES LTD,00114763
South Ribble Council,http://statistics.data.gov.uk/doc/local-authority/30UN,Property Services,Rep & Maint Premises,2020,materials,23/01/2019,0000444471,"4,744.88",Revenue,NORTH WEST MAINTENANCE SERVICES LTD,00114763
South Ribble Council,http://statistics.data.gov.uk/doc/local-authority/30UN,Area 1 - Penwortham Western Parishes,Professional Fees,4514,Deployment of Officers December 2018,18/01/2019,0000444320,"1,651.69",Revenue,NSL LTD,00116868
South Ribble Council,http://statistics.data.gov.uk/doc/local-authority/30UN,Area 1 - Penwortham Western Parishes,Other Misc,4855,Cash Collection & Ring-Go Transactions December 2018,18/01/2019,0000444320,269.93,Revenue,NSL LTD,00116868
South Ribble Council,http://statistics.data.gov.uk/doc/local-authority/30UN,Area 1 - Penwortham Western Parishes,Other Misc,4855,Ring-Go Convenience Charge December 2018,18/01/2019,0000444320,119.83,Revenue,NSL LTD,00116868
South Ribble Council,http://statistics.data.gov.uk/doc/local-authority/30UN,Information Services,Peripherals,4246,"Crisis Helpline for AD, Microsoft Exchange and Stonegate Firewall for period 12/02/19 - 11/02/20, as per quote",23/01/2019,0000444498,"1,350.92",Revenue,NVIRON LTD,00028781
South Ribble Council,http://statistics.data.gov.uk/doc/local-authority/30UN,Revenues Plus,Other Misc,4851,S Ribble WebBenCalc licence,25/01/2019,0000444552,735.00,Revenue,OTECH LTD,00088268
South Ribble Council,http://statistics.data.gov.uk/doc/local-authority/30UN,Planning,Agency Fees,1121,NAME REDACTED Consultant ,09/01/2019,0000444056,874.00,Revenue,Park Avenue Recruitment,132388
South Ribble Council,http://statistics.data.gov.uk/doc/local-authority/30UN,Neighbourhood Admin & Support,Materials General,4040,"1,000 x Parking Permits",30/01/2019,0000444580,911.10,Revenue,PARKING SHOP LTD,00084547
South Ribble Council,http://statistics.data.gov.uk/doc/local-authority/30UN,Neighbourhood Admin & Support,Materials General,4040,"1,000 x Plastic Wallets",30/01/2019,0000444580,280.00,Revenue,PARKING SHOP LTD,00084547
South Ribble Council,http://statistics.data.gov.uk/doc/local-authority/30UN,HR & Communications,Training Expense-Course Fees,1408,HAVS Tier 4 Assessments,30/01/2019,0000444620,510.00,Revenue,People Asset Management,132492
South Ribble Council,http://statistics.data.gov.uk/doc/local-authority/30UN,Environmental Health,Professional Fees,4522,gov fee,30/01/2019,0000444465,660.00,Revenue,Personnel Checks,132574
South Ribble Council,http://statistics.data.gov.uk/doc/local-authority/30UN,Environmental Health,Professional Fees,4522,admin fee,30/01/2019,0000444465,199.95,Revenue,Personnel Checks,132574
South Ribble Council,http://statistics.data.gov.uk/doc/local-authority/30UN,Area 1 - Penwortham Western Parishes,Materials General,4040,5 X 6mm Polycarbonate 3050 x 2050 @ 187.41 each,09/01/2019,0000444008,937.05,Revenue,Perspex Distribution Ltd,131635
South Ribble Council,http://statistics.data.gov.uk/doc/local-authority/30UN,Area 1 - Penwortham Western Parishes,Materials General,4040,Carriage,09/01/2019,0000444008,18.50,Revenue,Perspex Distribution Ltd,131635
South Ribble Council,http://statistics.data.gov.uk/doc/local-authority/30UN,Property Services,Operational Furniture & Equip,4012,2018 / 2019 contract for the provision of sanitary services at the Civic Centre,09/01/2019,0000444224,982.31,Revenue,PHS GROUP PLC,00031309
South Ribble Council,http://statistics.data.gov.uk/doc/local-authority/30UN,Property Services,Operational Furniture & Equip,4012,"2018 / 2019 contract for the provision of sanitary services at Moss Side Depot, Bison Place, Leyland",09/01/2019,0000444225,405.89,Revenue,PHS GROUP PLC,00031309
South Ribble Council,http://statistics.data.gov.uk/doc/local-authority/30UN,Area 2 - Waste Transport/Eastern & Central Teams,Materials General,4040,1000 ltrs Type 32 Hydraulic Oil @ 74 pence per litre,16/01/2019,0000444264,725.20,Revenue,PILKINGTON OILS,00113531
South Ribble Council,http://statistics.data.gov.uk/doc/local-authority/30UN,Information Services,Stationery,4133,"50,000 sheets Evolution Everyday  80gm A4,5000 sheets Evolution Everyday 80gm A3,2500 sheets Papago 80gm A4 Blue",16/01/2019,0000444311,329.43,Revenue,PREMIER PAPER GROUP LTD,00022606
South Ribble Council,http://statistics.data.gov.uk/doc/local-authority/30UN,Information Services,Stationery,4133,"50,000 sheets Evolution Everyday A4 80gm",23/01/2019,0000444492,262.00,Revenue,PREMIER PAPER GROUP LTD,00022606
South Ribble Council,http://statistics.data.gov.uk/doc/local-authority/30UN,Area 2 - Waste Transport/Eastern & Central Teams,External Contractors Charges,4570,TYRE REPAIRS AS PER TR200 - TH,16/01/2019,0000444259,401.75,Revenue,PRESTON TYRE SPECIALISTS,00109516
South Ribble Council,http://statistics.data.gov.uk/doc/local-authority/30UN,Democratic Services,Postage,4291,"PI Refresh postage, A) Mailing 1 - number of records 1,65,Initial letter",18/01/2019,0000444443,586.95,Revenue,PRINT IMAGE FACILITIES LLP,130734
South Ribble Council,http://statistics.data.gov.uk/doc/local-authority/30UN,Information Services,Training Expense-Course Fees,1420,"M203451 Course - delegate NAME REDACTED - March 2019, as per quote",04/01/2019,0000439606,730.00,Revenue,QA LIMITED,00113638
South Ribble Council,http://statistics.data.gov.uk/doc/local-authority/30UN,Area 3 - Parks/Leyland East West,Contract Hire & Lease Costs,3212,dumper,02/01/2019,0000443871,192.00,Revenue,Readyplant Limited,131535
South Ribble Council,http://statistics.data.gov.uk/doc/local-authority/30UN,Area 3 - Parks/Leyland East West,Contract Hire & Lease Costs,3212,excavator,02/01/2019,0000443871,408.00,Revenue,Readyplant Limited,131535
South Ribble Council,http://statistics.data.gov.uk/doc/local-authority/30UN,Area 3 - Parks/Leyland East West,Contract Hire & Lease Costs,3212,fuel charge,02/01/2019,0000443871,7.20,Revenue,Readyplant Limited,131535
South Ribble Council,http://statistics.data.gov.uk/doc/local-authority/30UN,Area 3 - Parks/Leyland East West,Contract Hire & Lease Costs,3212,std coll,02/01/2019,0000443871,40.00,Revenue,Readyplant Limited,131535
South Ribble Council,http://statistics.data.gov.uk/doc/local-authority/30UN,Neighbourhood Admin & Support,Contract Hire & Lease Costs,3212,3 ton dumper,30/01/2019,0000444452,460.00,Revenue,Readyplant Limited,131535
South Ribble Council,http://statistics.data.gov.uk/doc/local-authority/30UN,Neighbourhood Admin & Support,Contract Hire & Lease Costs,3212,fuel charge,30/01/2019,0000444452,18.00,Revenue,Readyplant Limited,131535
South Ribble Council,http://statistics.data.gov.uk/doc/local-authority/30UN,Area 3 - Parks/Leyland East West,Capital Expenditure,C230,HIRE OF EXCAVATOR - ON HIRE 1.10..18 TO 12.10.18 (FURTHER TO PURCHASE ORDER PUR0035823 - HIRE EXTENDED),30/01/2019,0000444655,340.00,Revenue,Readyplant Limited,131535
South Ribble Council,http://statistics.data.gov.uk/doc/local-authority/30UN,Area 3 - Parks/Leyland East West,Contract Hire & Lease Costs,3212,HIRE OF DUMPER - ON HIRE 1.4.18 - 23.4.18 (FURTHER TO PURCHSE ORDER PUR0033639 - HIRE EXTENDED),30/01/2019,0000444657,392.00,Revenue,Readyplant Limited,131535
South Ribble Council,http://statistics.data.gov.uk/doc/local-authority/30UN,Area 3 - Parks/Leyland East West,Contract Hire & Lease Costs,3212,fuel,30/01/2019,0000444657,15.30,Revenue,Readyplant Limited,131535
South Ribble Council,http://statistics.data.gov.uk/doc/local-authority/30UN,Property Services,Rep & Maint Premises,2020,Annual Contract 2018/2019 for the service of the dog wash at Worden Park - please provide photographic evidence as required,16/01/2019,0000444309,70.00,Revenue,RED ROSE BUILDING MAINTENANCE,00085410
South Ribble Council,http://statistics.data.gov.uk/doc/local-authority/30UN,Property Services,Rep & Maint Premises,2020,materials,16/01/2019,0000444309,495.00,Revenue,RED ROSE BUILDING MAINTENANCE,00085410
South Ribble Council,http://statistics.data.gov.uk/doc/local-authority/30UN,Property Services,Rep & Maint Premises,2020,"Attend carpark near old council offices, Station Rd Bamber Bridge clear debris from manholes/identify and map drain connections.",16/01/2019,0000444310,610.00,Revenue,RED ROSE BUILDING MAINTENANCE,00085410
South Ribble Council,http://statistics.data.gov.uk/doc/local-authority/30UN,Property Services,Rep & Maint Premises,2020,Attend the Civic Centre 3rd floor and make alterations to the internal HR and PR areas as per NAME REDACTED,23/01/2019,0000444470,510.00,Revenue,RED ROSE BUILDING MAINTENANCE,00085410
South Ribble Council,http://statistics.data.gov.uk/doc/local-authority/30UN,Property Services,Rep & Maint Premises,2020,materials,23/01/2019,0000444470,220.00,Revenue,RED ROSE BUILDING MAINTENANCE,00085410
South Ribble Council,http://statistics.data.gov.uk/doc/local-authority/30UN,Homelessness,Contractors Charges 5,5311,"Final accommodation bill 2.1.2019 - 13.1.2019, 13.1.19 being last night 12 nights x 25",18/01/2019,0000444421,300.00,Revenue,REDDY & CO,00108177
South Ribble Council,http://statistics.data.gov.uk/doc/local-authority/30UN,Information Services,Peripherals,4248,Annual RIAMS subscription fee for period 05/01/19 - 04/01/20,09/01/2019,0000444203,"3,060.00",Revenue,RHE LIMITED,00120207
South Ribble Council,http://statistics.data.gov.uk/doc/local-authority/30UN,Property Services,Energy Costs,2301,"Please supply 4,000 ltrs of fuel oil to Worden Park PR5 1DJ ",23/01/2019,0000444469,"2,678.00",Revenue,RIBBLE FUEL OILS,00047461
South Ribble Council,http://statistics.data.gov.uk/doc/local-authority/30UN,Revenues Plus,Balance Sheet,0001,,16/01/2019,0000444337,"3,331.09",Revenue,NAME REDACTED,132724
South Ribble Council,http://statistics.data.gov.uk/doc/local-authority/30UN,Information Services,Stationery,413A,,25/01/2019,0000444564,67.09,Revenue,RICOH (UK) LTD,00082976
South Ribble Council,http://statistics.data.gov.uk/doc/local-authority/30UN,Information Services,Lease Rental Charges,4036,,25/01/2019,0000444564,333.20,Revenue,RICOH (UK) LTD,00082976
South Ribble Council,http://statistics.data.gov.uk/doc/local-authority/30UN,Neighbourhood Admin & Support,Materials General,4040,2 x 5lt Finale,30/01/2019,0000444533,337.00,Revenue,RIGBY TAYLOR LTD,00033145
South Ribble Council,http://statistics.data.gov.uk/doc/local-authority/30UN,Neighbourhood Admin & Support,Materials General,4040,12 x 150gm Chikara,30/01/2019,0000444533,"2,040.00",Revenue,RIGBY TAYLOR LTD,00033145
South Ribble Council,http://statistics.data.gov.uk/doc/local-authority/30UN,Neighbourhood Admin & Support,Materials General,4040,30 x 5lt Trustee Amenity 450gm/lt,30/01/2019,0000444533,810.00,Revenue,RIGBY TAYLOR LTD,00033145
South Ribble Council,http://statistics.data.gov.uk/doc/local-authority/30UN,Regeneration,Other Misc,4861,"A Road Closure and 2 x advance signs for 15 December between 12pm -3pm on Withy Grove Road, Bamber Bridge",09/01/2019,0000443996,260.00,Revenue,Road Safety Services LTD,131989
South Ribble Council,http://statistics.data.gov.uk/doc/local-authority/30UN,Property Services,Other Misc,485C,,11/01/2019,0000443675,100.00,Revenue,ROUNDHOUSE PROPERTIES LTD,131973
South Ribble Council,http://statistics.data.gov.uk/doc/local-authority/30UN,Property Services,Other Misc,485C,,11/01/2019,0000443675,100.00,Revenue,ROUNDHOUSE PROPERTIES LTD,131973
South Ribble Council,http://statistics.data.gov.uk/doc/local-authority/30UN,Property Services,Other Misc,485C,,11/01/2019,0000443675,100.00,Revenue,ROUNDHOUSE PROPERTIES LTD,131973
South Ribble Council,http://statistics.data.gov.uk/doc/local-authority/30UN,Property Services,Other Misc,485C,,11/01/2019,0000443675,100.00,Revenue,ROUNDHOUSE PROPERTIES LTD,131973
South Ribble Council,http://statistics.data.gov.uk/doc/local-authority/30UN,Property Services,Other Misc,485C,,11/01/2019,0000443675,100.00,Revenue,ROUNDHOUSE PROPERTIES LTD,131973
South Ribble Council,http://statistics.data.gov.uk/doc/local-authority/30UN,Shared Financial Services,Balance Sheet,0030,Refund cheque received,16/01/2019,0000444394,710.16,Revenue,ROUNDHOUSE PROPERTIES LTD,131973
South Ribble Council,http://statistics.data.gov.uk/doc/local-authority/30UN,HR & Communications,Training Expense-Course Fees,1402,"Course: Planning Law Update,Date: 04/03/2019,Delegate: NAME REDACTED",18/01/2019,0000444488,85.00,Revenue,RTPI,00033491
South Ribble Council,http://statistics.data.gov.uk/doc/local-authority/30UN,HR & Communications,Training Expense-Course Fees,1402,"Course: Planning for Sport,Date: 13/03/2019,Delegate: NAME REDACTED",18/01/2019,0000444488,85.00,Revenue,RTPI,00033491
South Ribble Council,http://statistics.data.gov.uk/doc/local-authority/30UN,HR & Communications,Training Expense-Course Fees,1402,"Course: Housing,Date: 27/03/2019,Delegate: NAME REDACTED",18/01/2019,0000444488,85.00,Revenue,RTPI,00033491
South Ribble Council,http://statistics.data.gov.uk/doc/local-authority/30UN,HR & Communications,Training Expense-Course Fees,1402,"Course: Development Management Update,Date: 01/05/2019,Delegate: NAME REDACTED",18/01/2019,0000444488,85.00,Revenue,RTPI,00033491
South Ribble Council,http://statistics.data.gov.uk/doc/local-authority/30UN,HR & Communications,Training Expense-Course Fees,1402,"Course: Development Management Update,Date: 01/05/2019,Delegate: NAME REDACTED",18/01/2019,0000444488,85.00,Revenue,RTPI,00033491
South Ribble Council,http://statistics.data.gov.uk/doc/local-authority/30UN,HR & Communications,Training Expense-Course Fees,1402,"Course: Environment,Date: 19/06/2019,Delegate: NAME REDACTED",18/01/2019,0000444488,85.00,Revenue,RTPI,00033491
South Ribble Council,http://statistics.data.gov.uk/doc/local-authority/30UN,HR & Communications,Training Expense-Course Fees,1402,"Course: Assessing A Local Plan, Date: 25/06/2019, Delegate: NAME REDACTED",18/01/2019,0000444488,85.00,Revenue,RTPI,00033491
South Ribble Council,http://statistics.data.gov.uk/doc/local-authority/30UN,HR & Communications,Training Expense-Course Fees,1402,"Course: Assessing A Local Plan,Date: 25/06/2019, Delegate: NAME REDACTED",18/01/2019,0000444488,85.00,Revenue,RTPI,00033491
South Ribble Council,http://statistics.data.gov.uk/doc/local-authority/30UN,HR & Communications,Training Expense-Course Fees,1402,"Course: Mental Health PlanningDate: 10/09/2019, Delegate: NAME REDACTED",18/01/2019,0000444488,85.00,Revenue,RTPI,00033491
South Ribble Council,http://statistics.data.gov.uk/doc/local-authority/30UN,HR & Communications,Training Expense-Course Fees,1402,"Course: Planning Law Update,Date: 14/10/2019,Delegate: NAME REDACTED",18/01/2019,0000444488,85.00,Revenue,RTPI,00033491
South Ribble Council,http://statistics.data.gov.uk/doc/local-authority/30UN,Area 2 - Waste Transport/Eastern & Central Teams,External Contractors Charges,4570,SPEC REPAIR - PJ62UCL - JFC11763 - AW,16/01/2019,0000444202,252.95,Revenue,RTS Muni,132454
South Ribble Council,http://statistics.data.gov.uk/doc/local-authority/30UN,Property Services,Energy Costs,2303,1/11/18 to 30/11/18,30/01/2019,0000444080,468.70,Revenue,SCOTTISH HYDRO ELECTRIC,130051
South Ribble Council,http://statistics.data.gov.uk/doc/local-authority/30UN,Property Services,Energy Costs,2307,CCL,30/01/2019,0000444080,23.67,Revenue,SCOTTISH HYDRO ELECTRIC,130051
South Ribble Council,http://statistics.data.gov.uk/doc/local-authority/30UN,Property Services,Energy Costs,2303,1/11/18 to 30/11/18,30/01/2019,0000444083,"3,313.51",Revenue,SCOTTISH HYDRO ELECTRIC,130051
South Ribble Council,http://statistics.data.gov.uk/doc/local-authority/30UN,Property Services,Energy Costs,2307,CCL,30/01/2019,0000444083,177.45,Revenue,SCOTTISH HYDRO ELECTRIC,130051
South Ribble Council,http://statistics.data.gov.uk/doc/local-authority/30UN,Property Services,Energy Costs,2303,1/11/18 to 30/11/18,30/01/2019,0000444106,"1,762.96",Revenue,SCOTTISH HYDRO ELECTRIC,130051
South Ribble Council,http://statistics.data.gov.uk/doc/local-authority/30UN,Property Services,Energy Costs,2307,CCl,30/01/2019,0000444106,99.29,Revenue,SCOTTISH HYDRO ELECTRIC,130051
South Ribble Council,http://statistics.data.gov.uk/doc/local-authority/30UN,Property Services,Energy Costs,2303,1/11/18 to 30/11/18,30/01/2019,0000444107,895.02,Revenue,SCOTTISH HYDRO ELECTRIC,130051
South Ribble Council,http://statistics.data.gov.uk/doc/local-authority/30UN,Property Services,Energy Costs,2307,CCL,30/01/2019,0000444107,47.39,Revenue,SCOTTISH HYDRO ELECTRIC,130051
South Ribble Council,http://statistics.data.gov.uk/doc/local-authority/30UN,Property Services,Energy Costs,2304,27/9/18 to 20/12/18,30/01/2019,0000444174,261.58,Revenue,SCOTTISH HYDRO ELECTRIC,130051
South Ribble Council,http://statistics.data.gov.uk/doc/local-authority/30UN,Property Services,Energy Costs,2304,7/12/18 to 3/1/19,30/01/2019,0000444344,"1,176.96",Revenue,SCOTTISH HYDRO ELECTRIC,130051
South Ribble Council,http://statistics.data.gov.uk/doc/local-authority/30UN,Property Services,Energy Costs,2307,CCL,30/01/2019,0000444344,109.69,Revenue,SCOTTISH HYDRO ELECTRIC,130051
South Ribble Council,http://statistics.data.gov.uk/doc/local-authority/30UN,Property Services,Energy Costs,2304,25/9/18 to 20/12/18,30/01/2019,0000444345,"1,210.01",Revenue,SCOTTISH HYDRO ELECTRIC,130051
South Ribble Council,http://statistics.data.gov.uk/doc/local-authority/30UN,Property Services,Energy Costs,2307,CCL,30/01/2019,0000444345,120.61,Revenue,SCOTTISH HYDRO ELECTRIC,130051
South Ribble Council,http://statistics.data.gov.uk/doc/local-authority/30UN,Property Services,Energy Costs,2304,8/11/18 to 6/12/18,30/01/2019,0000444346,"1,189.37",Revenue,SCOTTISH HYDRO ELECTRIC,130051
South Ribble Council,http://statistics.data.gov.uk/doc/local-authority/30UN,Property Services,Energy Costs,2307,CCL,30/01/2019,0000444346,111.33,Revenue,SCOTTISH HYDRO ELECTRIC,130051
South Ribble Council,http://statistics.data.gov.uk/doc/local-authority/30UN,Property Services,Energy Costs,2303,2/10/18 to 1/1,30/01/2019,0000444698,279.91,Revenue,SCOTTISH HYDRO ELECTRIC,130051
South Ribble Council,http://statistics.data.gov.uk/doc/local-authority/30UN,Property Services,Energy Costs,2303,1/12/18 to 31/12/18,30/01/2019,0000444699,461.99,Revenue,SCOTTISH HYDRO ELECTRIC,130051
South Ribble Council,http://statistics.data.gov.uk/doc/local-authority/30UN,Property Services,Energy Costs,2307,CCL,30/01/2019,0000444699,23.32,Revenue,SCOTTISH HYDRO ELECTRIC,130051
South Ribble Council,http://statistics.data.gov.uk/doc/local-authority/30UN,Property Services,Energy Costs,2303,1/12/18 to 31/12/18,30/01/2019,0000444701,"3,058.61",Revenue,SCOTTISH HYDRO ELECTRIC,130051
South Ribble Council,http://statistics.data.gov.uk/doc/local-authority/30UN,Property Services,Energy Costs,2307,CCL,30/01/2019,0000444701,164.43,Revenue,SCOTTISH HYDRO ELECTRIC,130051
South Ribble Council,http://statistics.data.gov.uk/doc/local-authority/30UN,Property Services,Energy Costs,2303,2/10/18 to 1/1/19,30/01/2019,0000444702,288.56,Revenue,SCOTTISH HYDRO ELECTRIC,130051
South Ribble Council,http://statistics.data.gov.uk/doc/local-authority/30UN,Property Services,Energy Costs,2303,1/12/18 to 31/12/18,30/01/2019,0000444705,"1,784.12",Revenue,SCOTTISH HYDRO ELECTRIC,130051
South Ribble Council,http://statistics.data.gov.uk/doc/local-authority/30UN,Property Services,Energy Costs,2307,CCL,30/01/2019,0000444705,101.31,Revenue,SCOTTISH HYDRO ELECTRIC,130051
South Ribble Council,http://statistics.data.gov.uk/doc/local-authority/30UN,Property Services,Energy Costs,2303,1/12/18 to 31/12/18,30/01/2019,0000444706,921.69,Revenue,SCOTTISH HYDRO ELECTRIC,130051
South Ribble Council,http://statistics.data.gov.uk/doc/local-authority/30UN,Property Services,Energy Costs,2307,CCl,30/01/2019,0000444706,48.81,Revenue,SCOTTISH HYDRO ELECTRIC,130051
South Ribble Council,http://statistics.data.gov.uk/doc/local-authority/30UN,Information Services,Peripherals,4246,"Sophos Software  - SG 210 Premium Support 282.38 and SG 210 Web Protection 814.11, for period 29/01/19 - 28/01/20",30/01/2019,0000444576,"1,096.49",Revenue,SecureData Europe Ltd,132381
South Ribble Council,http://statistics.data.gov.uk/doc/local-authority/30UN,Healthy Communities,Consultancy Fees,4536,R & M for 2018/2019,16/01/2019,0000444201,"15,779.22",Revenue,SERCO LEISURE (OP) LTD,00094906
South Ribble Council,http://statistics.data.gov.uk/doc/local-authority/30UN,Development Enterprise & Comm Mgnt,Advertising,4842,"Full partnership package for Lancashire Apprenticeship and Careers Expo 2019, incorporating the Careers Caf�. 
Joint package with both elements together at a combined total price of 5,000 + vat.",30/01/2019,0000444606,"5,000.00",Revenue,Shout Futures Limited,132716
South Ribble Council,http://statistics.data.gov.uk/doc/local-authority/30UN,Information Services,Professional Fees,4520,Shredding of Confidential Waste 2018/19,02/01/2019,0000444042,317.51,Revenue,SHRED-IT LTD,00109134
South Ribble Council,http://statistics.data.gov.uk/doc/local-authority/30UN,Information Services,Professional Fees,4520,Shredding of Confidential Waste 2018/19,23/01/2019,0000444420,274.46,Revenue,SHRED-IT LTD,00109134
South Ribble Council,http://statistics.data.gov.uk/doc/local-authority/30UN,Development Enterprise & Comm Mgnt,Advertising,4842,"Provision of Christmas Dinner for the volunteer staff at South Ribble Museum & Exhibition Centre.,Wednesday19th December 2018.",18/01/2019,0000444139,606.10,Revenue,SLATERS CATERING LTD,131032
South Ribble Council,http://statistics.data.gov.uk/doc/local-authority/30UN,Revenues Plus,Clothing- Uniforms & Laundry,4410,Uniforms Gateway and Revenues staff,25/01/2019,0000444493,"3,092.50",Revenue,SMART IMAGE WORKWEAR,00031503
South Ribble Council,http://statistics.data.gov.uk/doc/local-authority/30UN,Homelessness,Contractors Charges 5,5311,"PB total placement 13/12/2018 - 14/1/2019 1900.00 replacement glass 5.00, timer 3.99, additional room clean 15.00",30/01/2019,0000444577,"1,923.99",Revenue,SMITHY LODGE GUEST HOUSE,130562
South Ribble Council,http://statistics.data.gov.uk/doc/local-authority/30UN,Healthy Communities,Consultancy Fees,4532,Leisure Services Fee 2018/2019,16/01/2019,0000444165,"16,639.56",Revenue,SOUTH RIBBLE COMMUNITY LEISURE LTD,00094210
South Ribble Council,http://statistics.data.gov.uk/doc/local-authority/30UN,Shared Financial Services,Balance Sheet,0030,Monthly Deductions from Payroll,09/01/2019,0000444278,678.00,Revenue,SOUTH RIBBLE LABOUR PARTY LOCAL GOVT,00120663
South Ribble Council,http://statistics.data.gov.uk/doc/local-authority/30UN,Area 2 - Waste Transport/Eastern & Central Teams,Materials General,4040,"RANSOMES ROLLER,7 HOLE BOTTOM BLADES,SCRAPER WIRES,RANSOMES SCREWS,CYLINDERS,2 REAR LAMPS",16/01/2019,0000444362,"1,486.75",Revenue,SPALDINGS,00070849
South Ribble Council,http://statistics.data.gov.uk/doc/local-authority/30UN,Area 2 - Waste Transport/Eastern & Central Teams,Materials General,4040,24 x Skids for Ransome Mowers @ 12.00 each - BIN1075,23/01/2019,0000444525,288.00,Revenue,SPALDINGS,00070849
South Ribble Council,http://statistics.data.gov.uk/doc/local-authority/30UN,Area 3 - Parks/Leyland East West,Materials General,4040,Schwegler 2FN  Box 55.,23/01/2019,0000444230,356.10,Revenue,STOW AGRICULTURAL LTD T/A WILDCARE,131823
South Ribble Council,http://statistics.data.gov.uk/doc/local-authority/30UN,Property Services,Client Internal Charges,4590,2018 / 2019 fees for front end loader weekly exchange at Leyland Market,09/01/2019,0000444181,361.92,Revenue,SUEZ  RECYCLING AND REC UK LTD 80005291,00038920
South Ribble Council,http://statistics.data.gov.uk/doc/local-authority/30UN,Property Services,Client Internal Charges,4590,2018 / 2019 monthly rental fees for the RORO at Leyland Market,09/01/2019,0000444181,65.00,Revenue,SUEZ  RECYCLING AND REC UK LTD 80005291,00038920
South Ribble Council,http://statistics.data.gov.uk/doc/local-authority/30UN,Regeneration,Capital Expenditure,C230,Survey of Shruggs wood for Leyland Campus Programme,23/01/2019,0000444041,"3,850.00",Revenue,SURVEY OPERATIONS LTD,00060697
South Ribble Council,http://statistics.data.gov.uk/doc/local-authority/30UN,Area 2 - Waste Transport/Eastern & Central Teams,Materials General,4040,1 SENSOR - VO65KRD - JFC11852 - TH,23/01/2019,0000444490,289.16,Revenue,Taylor Enginering & Fabrications Ltd,132560
South Ribble Council,http://statistics.data.gov.uk/doc/local-authority/30UN,Area 2 - Waste Transport/Eastern & Central Teams,Materials General,4040,1 SENSOR - VO65KRD - JFC11873 - AW,30/01/2019,0000444586,298.11,Revenue,Taylor Enginering & Fabrications Ltd,132560
South Ribble Council,http://statistics.data.gov.uk/doc/local-authority/30UN,Area 2 - Waste Transport/Eastern & Central Teams,External Contractors Charges,4570,Calibration and serving of commercial brake tester as per your quotation 5509,16/01/2019,0000442368,418.00,Revenue,Tecalemit Garage Equipment Company Limited,132135
South Ribble Council,http://statistics.data.gov.uk/doc/local-authority/30UN,Information Services,Consultancy Fees,4541,TALSRBCPQ001 - Cyber Security Consultancy Support quote,16/01/2019,0000444305,"1,612.50",Revenue,TechAlign,132535
South Ribble Council,http://statistics.data.gov.uk/doc/local-authority/30UN,Information Services,Consultancy Fees,4541,"TALSRBCP005 - BC/DR Interim Infrastructure proposal, as per quote",16/01/2019,0000444306,"4,225.00",Revenue,TechAlign,132535
South Ribble Council,http://statistics.data.gov.uk/doc/local-authority/30UN,Area 2 - Waste Transport/Eastern & Central Teams,Materials General,4040,RIGHT HAND BUTTON STATION - PJ62UCG - 11878,23/01/2019,0000444554,643.86,Revenue,TERBERG MATEC UK LTD,00058625
South Ribble Council,http://statistics.data.gov.uk/doc/local-authority/30UN,Area 2 - Waste Transport/Eastern & Central Teams,Materials General,4040,SENSOR - JFC11773 - VO65KRE - TH,23/01/2019,0000444555,291.33,Revenue,TERBERG MATEC UK LTD,00058625
South Ribble Council,http://statistics.data.gov.uk/doc/local-authority/30UN,Property Services,Rep & Maint Premises,2020,"2018 / 2019 service contract for the caf� door 1, caf� door 2, car park entrance left & right, sliding doors at Leyland market",16/01/2019,0000444351,260.00,Revenue,THE AUTOMATIC DOOR COMPANY LTD,00108533
South Ribble Council,http://statistics.data.gov.uk/doc/local-authority/30UN,Regeneration,Professional Fees,4510,Environmental project support and development,23/01/2019,0000444412,450.00,Revenue,The Bee centre,132104
South Ribble Council,http://statistics.data.gov.uk/doc/local-authority/30UN,Information Services,Peripherals,4247,"5 x SMS Credits (1,000 blocks) @ 55.00 each",30/01/2019,0000444658,275.00,Revenue,The Networking People NW (t/a TNP),132331
South Ribble Council,http://statistics.data.gov.uk/doc/local-authority/30UN,HR & Communications,Training Expense-Course Fees,1408,6 Sessions for ,30/01/2019,0000444711,360.00,Revenue,THE THERAPY COMPANY,131955
South Ribble Council,http://statistics.data.gov.uk/doc/local-authority/30UN,HR & Communications,Training Expense-Course Fees,1408,For ,30/01/2019,0000444712,360.00,Revenue,THE THERAPY COMPANY,131955
South Ribble Council,http://statistics.data.gov.uk/doc/local-authority/30UN,HR & Communications,Professional Fees,4513,PROVISION ON LEGAL SERVICES RELATING TO NAME REDACTED,09/01/2019,0000444130,250.00,Revenue,THOMPSONS SOLICITORS,132389
South Ribble Council,http://statistics.data.gov.uk/doc/local-authority/30UN,Legal,Publications,4142,ONLINE SUBSCRIPTION FOR PRACTICAL LAW UK PUBLIC SECTOR - 1/12/2018 - 31/12/2019,16/01/2019,0000444383,"2,685.22",Revenue,THOMSON REUTERS,00034979
South Ribble Council,http://statistics.data.gov.uk/doc/local-authority/30UN,Legal,Publications,4142,ONLINE SUBSCRIPTION  WEST LAW UK SERVICES - 1/12/2018 - 31/12/2019,16/01/2019,0000444383,"10,437.76",Revenue,THOMSON REUTERS,00034979
South Ribble Council,http://statistics.data.gov.uk/doc/local-authority/30UN,Legal,Publications,4142,ALDRIDGE R60,30/01/2019,0000444553,484.00,Revenue,THOMSON REUTERS,00034979
South Ribble Council,http://statistics.data.gov.uk/doc/local-authority/30UN,Area 3 - Parks/Leyland East West,Grounds Maint Cntrctrs Chgs,4657,Spare parts as per Quotation TIMQ13054-01 for Worden Park including carriage.,02/01/2019,0000444024,"1,360.70",Revenue,TIMBERPLAY LTD,00055440
South Ribble Council,http://statistics.data.gov.uk/doc/local-authority/30UN,Area 3 - Parks/Leyland East West,Grounds Maint Cntrctrs Chgs,4657,1x 0.9331 Mounting Plate for universal Joint (including cups & bolts) for the tractor tyre swing.,11/01/2019,0000444240,291.00,Revenue,TIMBERPLAY LTD,00055440
South Ribble Council,http://statistics.data.gov.uk/doc/local-authority/30UN,Area 3 - Parks/Leyland East West,Grounds Maint Cntrctrs Chgs,4657,Carriage,11/01/2019,0000444240,30.00,Revenue,TIMBERPLAY LTD,00055440
South Ribble Council,http://statistics.data.gov.uk/doc/local-authority/30UN,Information Services,Peripherals,4247,"For work at the South Ribble Tennis Centre, to include six-line option, as per quote no. TC1733/18",02/01/2019,0000444071,"1,186.67",Revenue,TIS Networks,132417
South Ribble Council,http://statistics.data.gov.uk/doc/local-authority/30UN,HR & Communications,Training Expense-Course Fees,1402,CARETAKER 1 TO ATTEND THE PASMA TRAINING COURSE ON 30 JANUARY 2019,25/01/2019,0000444468,95.00,Revenue,Training 2000,132728
South Ribble Council,http://statistics.data.gov.uk/doc/local-authority/30UN,HR & Communications,Training Expense-Course Fees,1402,CARETAKER 2 TO ATTEND THE PASMA TRAINING COURSE ON 30 JANUARY 2019,25/01/2019,0000444468,95.00,Revenue,Training 2000,132728
South Ribble Council,http://statistics.data.gov.uk/doc/local-authority/30UN,HR & Communications,Training Expense-Course Fees,1402,NAME REDACTED TO ATTEND THE PASMA TRAINING COURSE ON 30 JANUARY 2019,25/01/2019,0000444468,95.00,Revenue,Training 2000,132728
South Ribble Council,http://statistics.data.gov.uk/doc/local-authority/30UN,HR & Communications,Training Expense-Course Fees,1402,NAME REDACTED TO ATTEND PASMA TRAINING COURSE ON 30 JANUARY 2019,25/01/2019,0000444468,95.00,Revenue,Training 2000,132728
South Ribble Council,http://statistics.data.gov.uk/doc/local-authority/30UN,Property Services,Operational Furniture & Equip,4012,2018 / 2019 annual contract for the monthly rental of hot drinks machines at the civic centre including environmental charge.,11/01/2019,0000444239,322.09,Revenue,VENDING ENTERPRISES,00101501
South Ribble Council,http://statistics.data.gov.uk/doc/local-authority/30UN,Information Services,Peripherals,4269,"Annual PO for ISDN lines, line rentals & call charges 01/04/18 - 31/03/19",04/01/2019,0000444154,591.61,Revenue,VODAFONE RE:CABLE & WIRELESS UK,130810
South Ribble Council,http://statistics.data.gov.uk/doc/local-authority/30UN,Information Services,Peripherals,4247,,04/01/2019,0000444159,"1,316.66",Revenue,VODAFONE RE:CABLE & WIRELESS UK,130810
South Ribble Council,http://statistics.data.gov.uk/doc/local-authority/30UN,Information Services,Peripherals,4247,,04/01/2019,0000444160,"3,582.66",Revenue,VODAFONE RE:CABLE & WIRELESS UK,130810
South Ribble Council,http://statistics.data.gov.uk/doc/local-authority/30UN,Information Services,Processing-Internal,4212,Annual PO for GSi Convergence Framework 01/04/18 - 31/03/19,11/01/2019,0000444300,"2,903.48",Revenue,VODAFONE RE:CABLE & WIRELESS UK,130810
South Ribble Council,http://statistics.data.gov.uk/doc/local-authority/30UN,Information Services,Peripherals,4269,"Annual PO for ISDN lines, line rentals & call charges 01/04/18 - 31/03/19",30/01/2019,0000444748,647.70,Revenue,VODAFONE RE:CABLE & WIRELESS UK,130810
South Ribble Council,http://statistics.data.gov.uk/doc/local-authority/30UN,Property Services,Water Charges,2511,28/9/18 to 20/12/18,09/01/2019,0000444175,535.42,Revenue,WATER PLUS,00029845
South Ribble Council,http://statistics.data.gov.uk/doc/local-authority/30UN,Property Services,Water Charges,2511,3/10/18 to 25/,09/01/2019,0000444177,336.22,Revenue,WATER PLUS,00029845
South Ribble Council,http://statistics.data.gov.uk/doc/local-authority/30UN,Environmental Health,Other Misc,4851,National Book Token,30/01/2019,0000444551,250.00,Revenue,WATERSTONES,00000819
South Ribble Council,http://statistics.data.gov.uk/doc/local-authority/30UN,HR & Communications,Operational Furniture & Equip,4010,"1,20mm Fast Track Dye Sublimation Lanyards,30 each: Blue / Green / Grey / Orange / Red / Yellow.White pull reels",25/01/2019,0000444590,426.60,Revenue,We Brand It  re;Trade Promotions Ltd,132422
South Ribble Council,http://statistics.data.gov.uk/doc/local-authority/30UN,Legal,Legal,4821,PROFESSIONAL SERVICES (DEFAMATION SETTLEMENT) 22/10/2018 - 18/12/2018,16/01/2019,0000444322,"1,078.00",Revenue,WEIGHTMANS LLP,00120867
South Ribble Council,http://statistics.data.gov.uk/doc/local-authority/30UN,Area 3 - Parks/Leyland East West,Grounds Maint Cntrctrs Chgs,4657,8 x 22` - 25`  CHRISTMAS TREES AT LOCATION AS IDENTIFIED (@875.00 EACH),30/01/2019,0000443618,"7,000.00",Revenue,WESTFIELD TREE SERVICES LTD,00114226
South Ribble Council,http://statistics.data.gov.uk/doc/local-authority/30UN,Regeneration,Other Misc,4861,Labour and Mobile Elevated Work Platform to install new Christmas Lights at Gregson Lane,16/01/2019,0000444275,352.50,Revenue,WESTFIELD TREE SERVICES LTD,00114226
South Ribble Council,http://statistics.data.gov.uk/doc/local-authority/30UN,Revenues Plus,Postage,4291,Mail Services Revenues Jan - March 2019,18/01/2019,0000444460,261.21,Revenue,WHISTL UK LTD,131310
South Ribble Council,http://statistics.data.gov.uk/doc/local-authority/30UN,Area 3 - Parks/Leyland East West,Grounds Maint Cntrctrs Chgs,4657,8x B610 - Spec Replacement Wooden Crossbeams & Fixings.,23/01/2019,0000444502,"1,484.80",Revenue,WICKSTEED LEISURE LTD,00038661
South Ribble Council,http://statistics.data.gov.uk/doc/local-authority/30UN,Area 3 - Parks/Leyland East West,Grounds Maint Cntrctrs Chgs,4657,Carriage,23/01/2019,0000444502,74.00,Revenue,WICKSTEED LEISURE LTD,00038661
South Ribble Council,http://statistics.data.gov.uk/doc/local-authority/30UN,Property Services,Rep & Maint Premises,2020,REPAIRS TO SECTION OF YARD (MOSS SIDE DEPOT) 5 X 3M,30/01/2019,0000444640,"3,850.00",Revenue,WILLIAM PYE LTD,00031590
South Ribble Council,http://statistics.data.gov.uk/doc/local-authority/30UN,Area 3 - Parks/Leyland East West,Grounds Maint Cntrctrs Chgs,4657,New block work base for Conservatory at Worden Park,11/01/2019,0000444329,"2,323.20",Revenue,WJ Structures Ltd,132581
South Ribble Council,http://statistics.data.gov.uk/doc/local-authority/30UN,Neighbourhood Admin & Support,Capital Expenditure,C230,WORKS TO REPAIR CHIMNEYS & FIRE PLACES OF BREW HOUSE AND UNIT 2 INCLUDING SCAFFOLDING,11/01/2019,0000444330,"7,235.00",Revenue,WJ Structures Ltd,132581
South Ribble Council,http://statistics.data.gov.uk/doc/local-authority/30UN,Neighbourhood Admin & Support,Capital Expenditure,C230,"LEAD FLASHING, REPAIR BUTRESS TOP STEP WITH TIES/ COPING/ REMOVE SIDE PANEL/ REPLACE OLD HALL WALL.",16/01/2019,0000444347,"1,200.00",Revenue,WJ Structures Ltd,132581
